{"text_format":"1","workbook":"xlsx","n_sheets":22,"sheets":["Cover Page","Contents","Facility Info","Operational Data","Operational Summary","Perf. Form 1","Energy Form 1","Permit Compliance","Improvements","Public Liasion","CO2 N2O","Residue Quality ","Water","Air (periodic)","Air (CEMS)","HCl","SO2","NOx","TOC","Particulates","CO 95% 10 min","NH3"],"not_rendered":{"charts":7,"images":4,"macros":1,"external_links":0,"defined_names":22,"comments":0,"pivot_tables":0},"unopened":[],"bounds":{"document_bytes":16777216,"sheet_cells":100000,"rows_first":2000,"rows_last":500,"rows_between":2000,"halvings":0,"cell_chars":16384,"cell_head_chars":4096},"cells_cut":0,"cells_raw":0,"read":"whole","date_system":"1900"}

{"sheet":"Cover Page","index":0,"n_rows":53,"n_cols":14,"rows_kept":53,"cut":false,"hidden":false,"merged":[[48,2,48,3],[48,6,48,8],[52,2,52,3],[36,1,36,8],[40,2,40,8],[42,2,42,4],[44,2,44,4],[46,2,46,3],[46,6,46,8],[13,13,18,15],[34,1,34,8],[0,3,5,6],[7,1,23,8],[28,1,28,8],[30,1,30,8],[32,1,32,8]]}
[null,null,null,"Add company logo"]
[null,null,null,null,null,null,null,null,null,null,null,null,null,"Version 22.3  30/11/22"]
[]
[]
[]
[]
[]
[null,"Add photo"]
[]
[]
[]
[]
[null,null,null,null,null,null,null,null,null,null,null,null,null,"Notes:"]
[null,null,null,null,null,null,null,null,null,null,null,null,null,"This template may require adjustments by individual operators to meet specific reporting requirements as defined in the site Permit(s)"]
[]
[]
[]
[]
[]
[]
[]
[]
[]
[]
[]
[]
[]
[]
[null,"Annual Performance Report 2022"]
[]
[null,"Permit EPR/BR4551IC"]
[]
[null,"Kent Enviropower Limited"]
[]
[null,"Allington Incinerator, Allington Quarry"]
[]
[null,"Kent Enviropower Limited"]
[]
[null,"Year:",2022]
[]
[null,"Address:","Laverstoke Road, Allington, Maidstone, Kent. ME16 0LE"]
[]
[null,"Tel: ","0844 736 9990"]
[]
[null,"Email: "]
[]
[null,"Prepared by:","Trevor Ellis",null,null,"Position:","Environment Manager"]
[]
[null,"Approved by:","Tony Stanbridge",null,null,"Position:","General Manager"]
[]
[null,"Version:",1]
[]
[null,"Issue Date:","31st January 2023"]

{"sheet":"Contents","index":1,"n_rows":45,"n_cols":11,"rows_kept":45,"cut":false,"hidden":false,"merged":[[44,0,47,9],[37,1,37,6],[38,1,38,6],[39,1,39,6],[40,1,40,6],[41,1,41,6],[42,1,42,6],[36,1,36,6],[22,1,22,6],[23,1,23,6],[24,1,24,6],[27,1,27,6],[28,1,28,6],[29,1,29,6],[30,1,30,6],[31,1,31,6],[32,1,32,6],[35,1,35,6],[21,1,21,6],[9,1,9,6],[10,1,10,6],[11,1,11,6],[13,1,13,6],[14,1,14,6],[15,1,15,6],[16,1,16,6],[17,1,17,6],[18,1,18,6],[19,1,19,6],[20,1,20,6],[12,1,12,6],[4,10,7,14],[8,1,8,6],[3,1,3,6],[4,1,4,6],[5,1,5,6],[6,1,6,6],[7,1,7,6]]}
[{"$f":"+'Cover Page'!$B$29","v":"Annual Performance Report 2022"},null,null,null,{"$f":"+'Cover Page'!$B$33","v":"Kent Enviropower Limited"}]
[]
["Contents",null,null,null,null,null,null,null,null,null,"Notes:"]
["Section","Subject",null,null,null,null,null,"Page ",null,null,"Section references and Page nos. to be inserted"]
[null,"Facility Information",null,null,null,null,null,null,null,null,"Sections and Subjects may require adjustment by individual operators to meet specific reporting requirements as defined in the sites Permit(s)"]
[null,"Operational Data"]
[null,"Operational Summary"]
[null,"Performance Form 1"]
[null,"Energy Form 1"]
[null,"Permit Compliance"]
[null,"Improvements"]
[null,"Public Liasion"]
[null,"Carbon dioxide and nitrous oxide emissions"]
[null,"Residue Quality "]
[null,"Emissions to Water"]
[null,"Emissions to Air (periodically monitored)"]
[null,"Emissions to Air (continuously monitored)"]
[null,"Hydrogen Chloride emissions"]
[null,"Sulphur Dioxdie emsissions"]
[null,"Oxides of Notrigen emissions"]
[null,"Total Organic Carbon emissions"]
[null,"Particulate Matter emissions"]
[null,"Carbon Monoxide emissions"]
[null,"Ammonia emissions"]
[]
[]
["Version Control"]
["Section","Information",null,null,null,null,null,"Date"]
[]
[]
[]
[]
[]
[]
["Distribution"]
["Copy","Name, Role",null,null,null,null,null,"No."]
[]
[]
[]
[]
[]
[]
[]
[]
["This report is required under the Industrial Emissions Directive’s Article 55(2) requirements on reporting and public information on waste incineration plants and co-incineration plants, which require the operator to produce an annual report on the functioning and monitoring of the plant and make it available to the public. "]

{"sheet":"Facility Info","index":2,"n_rows":74,"n_cols":11,"rows_kept":74,"cut":false,"hidden":false,"merged":[[46,0,72,8],[73,0,76,8],[4,0,12,8],[4,10,12,13],[16,10,25,13],[16,0,45,8]]}
[{"$f":"+'Cover Page'!$B$29","v":"Annual Performance Report 2022"},null,null,null,{"$f":"+'Cover Page'!$B$33","v":"Kent Enviropower Limited"}]
[]
["Plant Description and Design",null,null,null,null,null,null,null,null,null,"Notes:"]
[]
["Installation Description\n\nThe Installation receives non hazardous municipal and industrial waste, recovers recyclable elements for reuse and eliminates the combustible element of the residue by burning in a fluidised bed furnace.  Energy is recovered from the process and converted to electricity in place of non-renewable fossil fuels. The combustion gases are cleaned to meet the standards required by the Directive before discharge from a tall chimney. Ashes and other solid residues are removed from the installation.\n\nThe Installation covers the site and the entire EfW plant including all EfW lines, waste reception, storage, on-site pre-treatment facilities, water, fuel and air supply systems, boiler, facilities for the treatment of exhaust gases, on-site facilities for treatment or storage of residues and waste water, stack, devices and systems for controlling combustion operations, recording and monitoring conditions.\n\nThe Installation has a design throughput of approx 580,000 tonnes per annum with an EfW capacity approx 560,000 tonnes per annum. The transfer loading station receives food waste and clean source separated recyclables which it reloads for onward transport and recovery.  There is a single waste reception followed by three independent waste treatment lines each complete with a heat recovery boiler, acid gas abatement, bag filter and a separate flue in the chimney. The heat produced from the combustion of the waste is used to generate steam in the boilers and the steam is then combined and passed to a steam turbine which generates approx 34.5 MW of electrical energy for export to the National Grid.",null,null,null,null,null,null,null,null,null,"Include summary of plant design, design capacity, no. of combustion lines, electrical and heat capacity and any other general information that descibes the facility, its location and purpose "]
[]
[]
[]
[]
[]
[]
[]
[]
[]
["Summary of Operational Processes and Procedures"]
[]
["Raw Materials\nWaste is delivered to the plant in road vehicles which are weighed before proceeding to the tipping\nhall. This is a fully enclosed building, maintained under slight negative pressure to ensure that no\nodours, dust or litter can escape the building. The vehicles carry either unsorted mixed municipal\nwaste, sorted waste for recycling or mixed recyclable waste and non recyclable waste and each tip\ninto the appropriate section of the tipping hall.\nThe unsorted mixed waste (black bag) is transferred by crane grab to a waste shredding line, it then\nmoves forward through a metals extraction section where ferrous metals are removed for recycling\nbefore moving to the prepared fuel bunker.\nThe facility also operates as a waste transfer site. It receives clean mixed recyclates and food wastes\ncollected in the community and loads them in bulk onto their designated transport vehicles for transport\noff site for recovery.\nA crane grab in the prepared fuel bunker both mixes the waste and charges the hoppers of the three\nincineration lines.\nHydrated lime for the flue gas cleaning process is delivered by bulk tanker and offloaded pneumatically\ninto three 125m3 silos vented through a reverse pulse jet filter.\nActivated carbon for the flue gas cleaning process is stored in dedicated silos that are pneumatically\nfilled from delivery trucks. There are three silos, one for each line, each equipped with filters to prevent\ndust emissions during filling.\nUrea, dissolved in water is stored in a fully bunded tank and is injected into the furnaces as necessary\nto control NOx emissions.\nCaustic soda for water treatment resin regeneration is delivered by bulk tanker and offloaded into a\n5.5 m3 tank with scrubber, inside the demineralisation area.\nHydrochloric acid for water treatment resin regeneration is delivered by bulk tanker and offloaded into\na 5.5 m3 tank vented through the caustic soda scrubber in a bund outside the demineralisation area.\nVarious other water treatment chemicals are delivered in appropriate containers and stored in bunded\nareas.\nGas oil for the combustion chamber burners and on-site vehicles is stored in a fully bunded 150 m3\ntank.\nSand for the fluidised bed furnaces is stored in 3 silos each of 55 cubic meters capacity.\nVarious maintenance materials (oils, greases, insulants, antifreezes, welding and fire fighting gases\netc.) are stored in the appropriate manner.\n                                                                                                                                                                                                                                                                                                                                                                                                                                                                                                                                                                                                                                                                                                                                                                                                                                                                                                                                                                                                                                                                                                                                        \n                                                                                                                                                                                                                                                                                                                                                                                                                                                                                         Combustion Process:-  The technology employed for incineration is the ROWITEC unit which uses a fluidised bed process.\nThe design has an inclined air distributor plate with a number of separate air supply chambers providing\ndifferential air flows across the bed, causing a revolving action. This technique promotes rapid and\nuniform mixing of the sand and bottom ash and ensures that heavy inert and non-combustible material\nmigrates to the sides of the bed where they can easily be removed.\nAn angled furnace wall above the fluidised bed zone restrains bed expansion under high fluidising air\nflows and so minimises particulate carry over. The elliptical patterns of air flow converge in the centre\nof the combustion area ensuring effective vertical and lateral turbulent mixing and high combustion\nefficiency and uniformity.\nThe waste is burned on a bed consisting of sand and ash that is held in suspension by an upward flow\nof combustion air that circulates the combustion mixture up to the throat of the furnace.\nThe furnace operating design is based on a thermal capacity of 53.8MW at full load and this can be\nachieved over the typical range of waste calorific values expected with municipal waste.\nThe combustion air system provides the furnace with the total air requirements for fluidisation and\ncombustion. Primary air is supplied to the bottom of the combustion chamber and fluidises the bed.\nThis air is extracted from the waste reception and storage buildings and destroys all odours in the\ncombustion chamber.\nEach furnace is equipped with two fuel oil burners for use at start-up to heat the furnace and also\nduring extreme reductions in waste fuel calorific value when the temperature of the furnace would\notherwise fall below 850 degrees Centigrade.\nCombustion control of the furnace will be achieved through a combination of furnace bed and freeboard\ntemperature control, primary air flow control, oxygen control within the flue gas and furnace load.\nRecirculated flue gas is fed to the furnace bed as a cooling medium to control the furnace bed\ntemperature and also to assist the control of NOx by influencing the combustion temperature conditions\nwithin the furnace.\nThe furnace bed is managed to remove non-combustible material (bottom ash) from the bed and\nmaintain the sand level within the optimum operating range. Bottom ashes produced in the furnace\ntogether with sand migrate down the slope of the furnace to the discharge section located at each side\nof the bed. The bottom ash and sand are both withdrawn from the discharge sections of the bed by\ntwo water-cooled discharge screw conveyors. Material passing out of the screw conveyors is\ndischarged to a vibrating screen. Undersize material is returned to the sand hopper for re-use within\nthe furnace while the oversized material is sent off site for recovery or re-use or landfill.\n",null,null,null,null,null,null,null,null,null,"Include summary of key processes and procedures such as (but not limited to); waste reception, control rooms, grate, bed and bolier, energy & heat  generation, cooling systems, residue management, emission controls, health and safety systems, maintenance"]
[]
[]
[]
[]
[]
[]
[]
[]
[]
[]
[]
[]
[]
[]
[]
[]
[]
[]
[]
[]
[]
[]
[]
[]
[]
[]
[]
[]
[]
["\nEnergy Recovery\nHot gases from the furnace pass through to a boiler designed to generate steam. The boiler comprises\ntwo fully water cooled radiation chambers, a single pass horizontal plain tube convective heating\nsurface, incorporating a three stage convective superheater unit and a plain tube economiser section.\nThe economiser is designed for high velocity gas flow to minimise the reformation of dioxins in the\ncritical de Novo synthesis range.\nSteam is generated at 65 bar and a final temperature of 420 degrees Centigrade.\nThe high pressure steam from all three boilers feeds into a common header which in turn will feed a\ncondensing steam turbine that will generate electricity. Steam exiting the turbine will be condensed in\nan air cooled condenser and the condensate returned to the boilers.\nGas Cleaning\nThe plant is designed to meet the requirements of the Industrial Emissions Directive as a minimum for\nreleases to air by a combination of main process design and operation and abatement equipment.\nFlue gases pass from the boiler to the gas cleaning equipment. The gas passes to an electrostatic\nprecipitator (ESP) for the separation of ash carried over from the furnace with the flue gas. Material\ncollected in the ESP will be discharged by means of rotary valves and chain conveyors and then\npneumatically fed to the ash silos or re-injected into the flue gas cleaning system.\nGases leaving the ESP enter the gas cleaning system. This comprises a circo clean reactor and bag\nfilter system. Gases entering the circo clean reactor will be at a temperature of 190 to 230 degrees C\nand will come into contact with a mixture of water, hydrated lime and activated carbon that have been\ninjected into the reactor. The reactor is designed to reduce or remove acidic pollutants such as HCl,\nSO2 and HF by the use of the hydrated lime and dioxins and furans, PCBs, PAHs, mercury vapour and\nheavy metal salts such as mercury chloride by the use of the activated carbon. The injected water enhances the reactions and cools the gas. The control system of the circo clean reactor optimises the\nuse of reactants by balancing the feed rate with the concentration of the pollutants entering the circo\nclean reactor.\nThe final stage of the gas cleaning system is the bag filter unit which separates the particulate material\nfrom the flue gas. The baghouse filter consists of compartments each of which contains a number of\ntubular filter bags. A thick porous layer of particulate builds on the bag surfaces to form a filter cake\nwhich efficiently removes ultra fine particles from the gas stream and the excess lime continues to\nreact with the acid gases.\nBag house residue is discharged from the compartments via the integrated buffer storage by a closed\npneumatic conveying system into the reaction product silos. Silos are equipped with a filter, hopper\nheating and fluidisation system to assist discharge. The residue is then discharged directly into road\nvehicles under dust free conditions for transport off site to a licensed facility.\nNitrogen oxides (NOx) abatement is achieved by the use of both flue gas recirculation (FGR) and\nselective non-catalytic reduction (SNCR). The SNCR is based on the injection of urea into the furnace\nchambers before the boilers and before the lime and carbon injection and before the gas passes to\nbag filters.\nThe cleaned gas then discharges to atmosphere via three 80-metre flues in a common stack at an\nefflux velocity in excess of 15 ms-1 at maximum throughput.\nAncillary Operations\nDemineralised water is required to compensate for boiler blowdown losses. A package\ndemineralisation plant provides this water. The ion exchange resins are regenerated using sodium\nhydroxide and hydrochloric acid and the regeneration effluent is routed through a neutralisation tank\nto the collection pit for reuse where possible.\nAsh Handling\nBottom ash, the combined boiler and ESP ash and the flue gas treatment residue (FGTR) from the\nbag filter system, are each sent for separate disposal off site by licensed contractors subject to waste\nlicensing legislation. FGTR is not mixed with any other ash at any time. The bottom ash is likely to be\nsubject to ferrous and non ferrous metals extraction by the contractors before disposal or reuse. All\noperations will be subject to waste licensing legislation and be tracked by the Environment Agency. At\nleast quarterly sampling of the bottom ash will be carried out to ensure effective burn out is being\nachieved by testing for the “loss on ignition” of the residual ash. All other solid waste residues arising\nfrom the operation of the process will be removed from site, in enclosed containers, for disposal by\nsuitable contractors.\nLiquid Effluent and Site Drainage\nUncontaminated surface water from the roads and parking area that is not reused within the process\nwill be discharged to sewer.\n"]
[]
[]
[]
[]
[]
[]
[]
[]
[]
[]
[]
[]
[]
[]
[]
[]
[]
[]
[]
[]
[]
[]
[]
[]
[]
[]
["Emissions Monitoring\nEmissions from the stack are continuously monitored for: particulate, carbon monoxide (CO), ammonia\n(NH3), sulphur dioxide (SO2), hydrogen chloride (HCl), oxygen (O2), nitrogen oxides (NOx) and volatile\norganic compounds (VOC). In addition periodic sampling and measurement will be carried out for\nmetals cadmium (Cd), thallium (Tl), mercury (Hg), antimony (Sb), arsenic (As), lead (Pb), chromium\n(Cr), cobalt (Co), copper (Cu), manganese (Mn), nickel (Ni), vanadium (V), dioxins and furans, dioxin\nlike PCBs, hydrogen fluoride (HF) and nitrous oxide (N2O). Periodic measurements will be carried out\nfour times in the first year and thereafter either at the same frequency or twice per year dependant on\nthe substances.\n"]

{"sheet":"Operational Data","index":3,"n_rows":63,"n_cols":11,"rows_kept":63,"cut":false,"hidden":false,"merged":[[53,0,55,0],[5,10,6,10],[7,10,18,10],[33,1,38,1],[3,1,3,2],[7,1,19,1],[23,1,26,1],[28,1,29,1],[30,2,30,5]]}
[{"$f":"+'Cover Page'!$B$29","v":"Annual Performance Report 2022"},null,null,null,{"$f":"+'Cover Page'!$B$33","v":"Kent Enviropower Limited"}]
[]
["Operational Data",null,null,null,null,null,null,null,null,null,"Notes:"]
["Plant Size",560000,null,"tonnes pa",41670,"MWth",376680,"MWe",null,null,"* - RDF to include SRF "]
["No. of combustion lines",3,null,"No. of Turbines:",null,1,null,null,null,null,"** - CHP plants only"]
[null,null,null,null,null,null,null,null,null,null,"2020 updates include;  heat in MWh, water in Litres, NCV in MJ/kg"]
["Waste types received","Unit","Q1","Q2","Q3","Q4","Year Total","%"]
["Household / Local Authority","tonnes",69602.439999999988,83133.87999999999,80770.237999999998,79493.78,{"$f":"SUM(C8:F8)","v":313000.33799999999},{"$f":"IF(G8>0,G8/$G$18,\"-\")","v":0.60185320593108182},null,null,"Availabiity Definition: 'the availability of a line is to be calculated by the number of hours the line reported Continuously Monitored emission levels to the Regulator through the calendar year divided by the total number of hours in that year. \nThe overall plant availability is calculated as the Mean of all lines in the plant. For clarity this includes periods of Other Than Normal Operating Conditions (OTNOC) and abnormal operation.'  \n\nRationale: The primary function of an Energy from Waste facility is the disposal of waste. It follows therefore that the availability of a plant is determined by the period of time a facility spends undertaking this activity."]
["Commercial & Industrial ",null,34947.75,39540.69,45269.362000000008,60736.04,{"$f":"SUM(C9:F9)","v":180493.842},0.34706287588263934]
["Hazardous ",null,null,null,null,null,0,"-"]
["Clinical",null,null,null,null,null,0,"-"]
["Waste wood (biomass) ",null,null,null,null,null,0,"-"]
["Refuse Derived Fuel * - H'hold/LA",null,null,null,null,null,{"$f":"SUM(C13:F13)","v":0},"-"]
["Refuse Derived Fuel *  - C&I",null,null,null,null,null,0,"-"]
["Food waste",null,1194.97,1108.5,1036.0999999999999,1054.52,4394.09,8.449183060146432E-3]
["Recyclates waste",null,5202.8599999999997,5028.7800000000007,5007.18,4772.4399999999996,20011.259999999998,{"$f":"IF(G16>0,G16/$G$18,\"-\")","v":3.8478683641934026E-2}]
["Card/Paper",null,585.44000000000005,475.78000000000009,504.5200000000001,595.66,2161.4,4.1560514841982067E-3]
["Total waste received",null,{"$f":"SUM(C8:C17)","v":111533.45999999999},{"$f":"SUM(D8:D17)","v":129287.62999999999},{"$f":"SUM(E8:E17)","v":132587.4},{"$f":"SUM(F8:F17)","v":146652.44},{"$f":"SUM(G8:G17)","v":520060.93000000005},1]
["Rejected Waste ",null,209.44000000000003,132.98000000000002,9.58,6.82,358.82000000000005,{"$f":"IF(G19>0,G19/$G$18,\"-\")","v":6.8995761708152156E-4}]
["Unprocessed waste transferred out",null,6983.27,6613.06,6547.8000000000011,6422.619999999999,{"$f":"SUM(C20:F20)","v":26566.750000000004},{"$f":"IF(G20>0,G20/$G$18,\"-\")","v":5.1083918186278672E-2}]
["Total waste combusted",null,92221,119683,119926,131847,{"$f":"SUM(C21:F21)","v":463677},{"$f":"IF(G21>0,G21/$G$18,\"-\")","v":0.89158206904717863}]
[]
["Energy Useage / Export","Unit","Q1","Q2","Q3","Q4","Year Total","KWh/te"]
["Power Generated","MWh",53258.33,68220.649999999994,71946.880000000005,75112.14,{"$f":"SUM(C24:F24)","v":268538},{"$f":"IF(G24>0,G24*1000/$G$21,\"-\")","v":579.14884715006349}]
["Power Exported",null,40698.879999999997,52722,56036,59257,{"$f":"SUM(C25:F25)","v":208713.88},{"$f":"IF(G25>0,G25*1000/$G$21,\"-\")","v":450.12773978437576}]
["Power Used on site",null,11522,15586.09,14866.5,15465.91,{"$f":"SUM(C26:F26)","v":57440.5},{"$f":"IF(G26>0,G26*1000/$G$21,\"-\")","v":123.88041675562945}]
["Power Imported",null,811,493,429,206,1939,{"$f":"IF(G27>0,G27*1000/$G$21,\"-\")","v":4.1817903411210819}]
["Parasitic Load","%",{"$f":"IF(C24>0,1-C25/(C24+C27),\"-\")","v":0.24728344146302539},{"$f":"IF(D24>0,1-D25/(D24+D27),\"-\")","v":0.23272886828162953},{"$f":"IF(E24>0,1-E25/(E24+E27),\"-\")","v":0.22576416342018923},{"$f":"IF(F24>0,1-F25/(F24+F27),\"-\")","v":0.21324398079931339},{"$f":"IF(G24>0,1-G25/(G24+G27),\"-\")","v":0.22834887994173259}]
["Thermal Energy Produced **","MWh",null,null,null,null,{"$f":"SUM(C29:F29)","v":0},{"$f":"IF(G29>0,G29*1000/$G$21,\"-\")","v":"-"}]
["Thermal Energy Exported **",null,null,null,null,null,0,{"$f":"IF(G30>0,G30*1000/$G$21,\"-\")","v":"-"}]
["R1 value (if applicable)",null,0.62]
[]
["Waste Disposal & Recovery","Unit","Q1","Q2","Q3","Q4","Year Total","% inputs"]
["APC Residues - produced (including FGT, Boiler and ESP ash)","tonnes",8863.9600000000009,12076.019999999999,12059.94,11852.099999999999,{"$f":"SUM(C34:F34)","v":44852.02},{"$f":"IF(G34>0,G34/$G$21,\"-\")","v":9.673117277760164E-2}]
["IBA - produced",null,10389.540000000001,12066.9,12586.736000000001,12227.159999999998,47270.336000000003,{"$f":"IF(G35>0,G35/$G$21,\"-\")","v":0.10194669133901402}]
["Metals recycling",null,2866.86,3851.32,4025.38,3785.4799999999996,{"$f":"SUM(C36:F36)","v":14529.04},3.1334398730150516E-2]
["Other",null,0,0,0,0,{"$f":"SUM(C37:F37)","v":0},"-"]
["Other",null,0,0,0,0,0,"-"]
["Other",null,0,0,0,0,0,"-"]
[]
["Raw Material Usage","Unit","Q1","Q2","Q3","Q4","Year Total","kg or Ltr /te"]
["Mains Water","ltrs",44176000,45706000,43102000,43102000,{"$f":"SUM(C42:F42)","v":176086000},{"$f":"IF(G42>0,G42/$G$21,\"-\")","v":379.76004848202518}]
["Lime / hydrated lime","kgs",648000,934000,860000,746000,3188000,{"$f":"IF(G43>0,G43/$G$21,\"-\")","v":6.875475816139252}]
["Urea","kgs",8000,66000,0,0,74000,0.15959385520523986]
["Activated carbon","kgs",86000,57000,72000,66000,{"$f":"SUM(C45:F45)","v":281000},0.60602531503611345]
["Caustic Soda","kgs",48000,31000,52000,37000,168000,0.36232118479027425]
["Hydrochloric Acid","kgs",60000,38000,55000,30000,183000,0.39467129057512018]
["Sand","kgs",702000,850000,819000,1044000,3415000,7.3650407503499205]
["Ammonia","kgs",0,0,0,0,null,"-"]
["Salt","kgs",0,1000,2000,1000,4000,8.6266948759589103E-3]
["Fuel oil","ltrs",224106,421490,397550,295280,1338426,2.8865481790125456]
[]
["Summary ","Line/Unit","Q1","Q2","Q3","Q4","Year Total",null,null,"Hrs in year "]
["Availability of waste combustion by line, hrs",1,1514.4,1970.26,1573.28,2076.77,{"$f":"SUM(C54:F54)","v":7134.7099999999991},{"$f":"+(G54)/$J$54","v":0.81446461187214603},null,8760]
[null,2,1714.68,1731.84,2014.53,1789.89,7250.9400000000005,{"$f":"+(G55)/$J$54","v":0.82773287671232887}]
[null,3,1402.92,1995.42,2157.4,1935.5,7491.24,0.85516438356164381]
["Overall Availability, mean avg. of all lines, hrs",null,1544,1899.1733333333334,1915.07,1934.0533333333333,{"$f":"AVERAGE(G54:G56)","v":7292.2966666666662},0.83245395738203953]
["Hours of turbine operations, hrs",1,1717.65,2095.25,2148.92,2173.1799999999998,8135,0.92865296803652964]
["Hours of heat / steam export",null,null,null,null,null,0,{"$f":"IF(B59>0,#REF!/J54,\"n/a\")","v":"n/a"}]
["Net Calorific Value of waste","MJ/kg",null,null,null,null,null,"-"]
["Abnormal Events","qty.",1,1,0,0,2,{"$f":"IF(G61>0,\"yes\",\"no\")","v":"yes"}]
["Abnormal operation","hours",2,0.5,0,0,2.5,{"$f":"+(G62)/J54","v":2.8538812785388126E-4}]
["Permit Breaches","qty.",1,0,0,4,5,{"$f":"IF(G63>0,\"yes\",\"no\")","v":"yes"}]

{"sheet":"Operational Summary","index":4,"n_rows":31,"n_cols":11,"rows_kept":31,"cut":false,"hidden":false,"merged":[[4,0,26,8],[30,0,51,8],[4,10,13,13],[30,10,39,13]]}
[{"$f":"+'Cover Page'!$B$29","v":"Annual Performance Report 2022"},null,null,null,{"$f":"+'Cover Page'!$B$33","v":"Kent Enviropower Limited"}]
[]
["Summary of Plant Operations and Maintenance during the reporting year",null,null,null,null,null,null,null,null,null,"Notes:"]
[]
["Line 3 and Line 2 underwent planned maintenance outages in March and April, with particular focus in the following areas:\n\n-\tFurnace refractory inspection and repair/replacement\n-\tBoiler cleaning and inspection using non-destructive testing\n-\tInconel weld overlay of boiler tube to protect against corrosion from flue gas\n-\tInspection and overhaul of 120+ valves to improve efficiency\n-\tReplacement of sand screw cooling systems\n-\tDry-ice cleaning of Electrostatic Precipitators to improve efficiency\n-\tInspection and replacement of residue ash hopper walls where thin\n-\tInspection and cleaning of electrical system components\n\nFor a period of 9 days the entire site was shut down and fed via generators to enable 3 yearly maintenance of common plant systems, including:\n\n-\tHigh voltage electrical equipment inspection and testing\n-\tStatutory inspection of pressure systems including safety valves\n-\tInspection of the chimney\n-\tUpgrade of fuel preparation conveyors ",null,null,null,null,null,null,null,null,null,"Include summary of key operational and/or mainteanance activity undertaken in the year, such as any major component upgrades and/or replacements "]
[]
[]
[]
[]
[]
[]
[]
[]
[]
[]
[]
[]
[]
[]
[]
[]
[]
[]
[]
[]
[]
[]
[]
["Summary of Residue Handling for the reporting year"]
[]
["Bottom ash, the combined boiler and ESP ash and the flue gas treatment residue (FGTR) from the\nbag filter system, are each sent for separate disposal off site by licensed contractors subject to waste\nlicensing legislation. FGTR is not mixed with any other ash at any time. The bottom ash is likely to be\nsubject to ferrous and non ferrous metals extraction.\nIBA is subject to hazardous assessment twice a month and approx. 42 vehicles are sent off site every week for recovery.\nThe APC residues are tested quarterly and approx. 35 tankers are sent off site every week. ",null,null,null,null,null,null,null,null,null,"Include in here a summary of residue handling regimes and destinations "]

{"sheet":"Perf. Form 1","index":5,"n_rows":60,"n_cols":10,"rows_kept":60,"cut":false,"hidden":false,"merged":[[40,0,40,3],[40,4,40,5],[55,0,55,9],[56,0,57,9],[44,0,44,9],[45,0,46,9],[49,0,49,1],[49,2,49,9],[51,0,51,1],[52,0,52,1],[42,0,42,3],[42,4,42,5],[42,7,42,8],[43,0,43,3],[43,4,43,5],[43,7,43,8],[53,0,53,1],[40,7,40,8],[41,0,41,3],[41,4,41,5],[41,7,41,8],[39,0,39,3],[39,4,39,5],[39,7,39,8],[38,7,38,8],[37,7,37,8],[36,7,36,8],[38,0,38,3],[33,4,33,5],[36,0,36,3],[37,0,37,3],[34,4,34,5],[35,4,35,5],[36,4,36,5],[37,4,37,5],[38,4,38,5],[23,0,23,3],[23,4,23,5],[23,6,23,7],[23,8,23,9],[25,0,25,9],[26,0,28,9],[33,7,33,8],[34,7,34,8],[35,7,35,8],[33,0,33,3],[34,0,34,3],[35,0,35,3],[31,0,31,3],[31,7,31,8],[32,0,32,3],[32,4,32,5],[32,7,32,8],[21,0,21,1],[21,2,21,3],[21,4,21,5],[21,6,21,7],[21,8,21,9],[22,0,22,3],[22,4,22,5],[22,6,22,7],[22,8,22,9],[19,0,19,1],[19,2,19,3],[19,4,19,5],[19,6,19,7],[19,8,19,9],[20,0,20,1],[20,2,20,3],[20,4,20,5],[20,6,20,7],[20,8,20,9],[17,0,17,1],[17,2,17,3],[17,4,17,5],[17,6,17,7],[17,8,17,9],[18,0,18,1],[18,2,18,3],[18,4,18,5],[18,6,18,7],[18,8,18,9],[15,0,15,1],[15,2,15,3],[15,4,15,5],[15,6,15,7],[15,8,15,9],[16,0,16,9],[13,0,13,1],[13,2,13,3],[13,4,13,5],[13,6,13,7],[13,8,13,9],[14,0,14,3],[14,4,14,5],[14,6,14,7],[14,8,14,9],[11,0,11,1],[11,2,11,3],[11,4,11,5],[11,6,11,7],[11,8,11,9],[12,0,12,1],[12,2,12,3],[12,4,12,5],[12,6,12,7],[12,8,12,9],[9,0,9,9],[10,0,10,1],[10,2,10,3],[10,4,10,5],[10,6,10,7],[10,8,10,9],[2,0,2,4],[2,6,2,8],[3,1,3,4],[5,3,5,4],[5,6,5,7],[8,0,8,1],[8,2,8,3],[8,4,8,5],[8,6,8,7],[8,8,8,9]]}
[{"$f":"+'Cover Page'!C39","v":2022}," Annual Reporting Performance Form 1"]
[]
[{"$f":"+'Cover Page'!B31","v":"Permit EPR/BR4551IC"},null,null,null,null,"Operator: ","Kent Enviropower Limited"]
["Facility:",{"$f":"+'Cover Page'!B33:I33","v":"Kent Enviropower Limited"},null,null,null,"Form:","Performance 1"]
[]
["Reporting  Period from: ",null,null,"2022-01-01",null,"to:","2022-12-31"]
[]
[{"$f":"+A1","v":2022},"Annual Reporting of Waste Disposal and Recovery"]
["Waste Description",null,"Disposal Route(s)",null,"Disposal Tonnes",null,"Recovery Tonnes",null,"% / tonne of waste incinerated"]
["1) Hazardous Wastes"]
["APC Residues (including FGT, Boiler and ESP ash)",null,"Landfill",null,10088.58,null,null,null,{"$f":"IF((E11+G11)>0,(E11+G11)/'Operational Data'!$G$21, \"-\")","v":2.1757775347925386E-2}]
["APC Residues (including FGT, Boiler and ESP ash)",null,"Recycling",null,null,null,34763.440000000002,null,{"$f":"IF((E12+G12)>0,(E12+G12)/'Operational Data'!$G$21, \"-\")","v":7.4973397429676264E-2}]
[null,null,null,null,null,null,null,null,{"$f":"IF((E13+G13)>0,(E13+G13)/'Operational Data'!$G$21, \"-\")","v":"-"}]
[null,null,null,null,null,null,null,null,{"$f":"IF((E14+G14)>0,(E14+G14)/'Operational Data'!$G$21, \"-\")","v":"-"}]
["Total Hazardous Waste",null,null,null,{"$f":"SUM(E11:F14)","v":10088.58},null,{"$f":"SUM(G11:H14)","v":34763.440000000002},null,{"$f":"IF((E15+G15)>0,(E15+G15)/'Operational Data'!$G$21, \"-\")","v":9.6731172777601654E-2}]
[]
["2) Non-Hazardous Wastes"]
["IBA",null,"Recycling",null,null,null,47270.336000000003,null,{"$f":"IF((E18+G18)>0,(E18+G18)/'Operational Data'!$G$21, \"-\")","v":0.10194669133901402}]
["Ferrous Metal",null,"Recycling",null,null,null,14529.04,null,{"$f":"IF((E19+G19)>0,(E19+G19)/'Operational Data'!$G$21, \"-\")","v":3.1334398730150516E-2}]
[null,null,null,null,null,null,null,null,{"$f":"IF((E20+G20)>0,(E20+G20)/'Operational Data'!$G$21, \"-\")","v":"-"}]
[null,null,null,null,null,null,null,null,{"$f":"IF((E21+G21)>0,(E21+G21)/'Operational Data'!$G$21, \"-\")","v":"-"}]
[null,null,null,null,null,null,null,null,{"$f":"IF((E22+G22)>0,(E22+G22)/'Operational Data'!$G$21, \"-\")","v":"-"}]
["Total Non-Hazardous Waste",null,null,null,{"$f":"SUM(E18:F22)","v":0},null,{"$f":"SUM(G18:H22)","v":61799.376000000004},null,{"$f":"IF((E23+G23)>0,(E23+G23)/'Operational Data'!$G$21, \"-\")","v":0.13328109006916453}]
["TOTAL WASTE",null,null,null,{"$f":"+E23+E15","v":10088.58},null,{"$f":"+G23+G15","v":96562.816000000006},null,{"$f":"IF((E24+G24)>0,(E24+G24)/'Operational Data'!$G$21, \"-\")","v":0.23001226284676618}]
[]
["Operator’s comments :"]
["In 2021 APCr was sent primarily to landfill. During 2022 there has been a significant shift and APCr is now primarily recycled."]
[]
[]
[]
[{"$f":"+A1","v":2022},"Annual Reporting of Water and Other Raw Material Usage"]
["Raw Material",null,null,null,"Usage",null,"Unit","Specific Useage",null,"Unit"]
["Mains Water",null,null,null,{"$f":"+'Operational Data'!G42/1000","v":176086},null,"m3",{"$f":"IF(E33>0,E33/'Operational Data'!$G$21,\"-\")","v":0.37976004848202521},null,"m3/te"]
["Total Water",null,null,null,176086,null,"m3",{"$f":"IF(E34>0,E34/'Operational Data'!$G$21,\"-\")","v":0.37976004848202521},null,"m3/te"]
["Lime / hydrated lime","Lime / hydrated lime","Lime / hydrated lime","Lime / hydrated lime",{"$f":"'Operational Data'!G43","v":3188000},null,"kgs",{"$f":"IF(E35>0,E35/'Operational Data'!$G$21,\"-\")","v":6.875475816139252},null,"kg/te"]
["Urea","Urea","Urea","Urea",{"$f":"'Operational Data'!G44","v":74000},null,"kgs",{"$f":"IF(E36>0,E36/'Operational Data'!$G$21,\"-\")","v":0.15959385520523986},null,"kg/te"]
["Activated carbon","Activated carbon","Activated carbon","Activated carbon",{"$f":"'Operational Data'!G45","v":281000},null,"kgs",{"$f":"IF(E37>0,E37/'Operational Data'!$G$21,\"-\")","v":0.60602531503611345},null,"kg/te"]
["Caustic Soda","Caustic Soda","Caustic Soda","Caustic Soda",{"$f":"'Operational Data'!G46","v":168000},null,"kgs",{"$f":"IF(E38>0,E38/'Operational Data'!$G$21,\"-\")","v":0.36232118479027425},null,"kg/te"]
["Hydrochloric Acid","Hydrochloric Acid","Hydrochloric Acid","Hydrochloric Acid",{"$f":"'Operational Data'!G47","v":183000},null,"kgs",{"$f":"IF(E39>0,E39/'Operational Data'!$G$21,\"-\")","v":0.39467129057512018},null,"kg/te"]
["Sand","Sand","Sand","Sand",{"$f":"'Operational Data'!G48","v":3415000},null,"kgs",{"$f":"IF(E40>0,E40/'Operational Data'!$G$21,\"-\")","v":7.3650407503499205},null,"kg/te"]
["Ammonia","Ammonia","Ammonia","Ammonia",{"$f":"'Operational Data'!G49","v":0},null,"kgs",{"$f":"IF(E41>0,E41/'Operational Data'!$G$21,\"-\")","v":"-"},null,"kg/te"]
["Salt","Salt","Salt","Salt",{"$f":"'Operational Data'!G50","v":4000},null,"kgs",{"$f":"IF(E42>0,E42/'Operational Data'!$G$21,\"-\")","v":8.6266948759589103E-3},null,"kg/te"]
["Fuel oil","Fuel oil","Fuel oil","Fuel oil",{"$f":"'Operational Data'!G51","v":1338426},null,"ltrs",{"$f":"IF(E43>0,E43/'Operational Data'!$G$21,\"-\")","v":2.8865481790125456},null,"ltrs/te"]
[]
["Operator’s comments :"]
["No comments for this section."]
[]
[]
[{"$f":"+A31","v":2022},"Annual Reporting of other performance indicators "]
["Parameter",null,"Results by Line"]
[null,null,"A1","A2","A3","A4","A5",null,"Turbine 1","Turbine 2"]
["Operating hours for the year, hours",null,7134.7099999999991,7250.9400000000005,7491.24,null,null,null,8135]
["Number of periods of abnormal operation, qty.",null,1,0,1]
["Cumulative hours of abnormal operation for this year, hours",null,0.5,0,2]
[]
["Operator’s comments :"]
["The number of periods of abnormal operation have reduded in 2022 from 2021."]
[]
[]
["Signed: ",null,null,null,null,null,"Date:","27th January 2023"]

{"sheet":"Energy Form 1","index":6,"n_rows":29,"n_cols":8,"rows_kept":29,"cut":false,"hidden":false,"merged":[[15,0,15,2],[15,3,15,4],[15,6,15,8],[17,0,17,8],[18,0,24,8],[13,0,13,2],[13,3,13,4],[13,6,13,8],[14,0,14,2],[14,3,14,4],[14,6,14,8],[11,0,11,2],[11,3,11,4],[11,6,11,8],[12,0,12,2],[12,3,12,4],[12,6,12,8],[9,0,9,2],[9,3,9,4],[9,6,9,8],[10,0,10,2],[10,3,10,4],[10,6,10,8],[2,6,2,8],[4,1,4,4],[6,3,6,4],[6,6,6,7],[8,0,8,2],[8,3,8,4],[8,6,8,8]]}
[{"$f":"+'Cover Page'!C39","v":2022}," Annual Reporting of Energy Usage/Export"]
[]
[{"$f":"+'Cover Page'!B31","v":"Permit EPR/BR4551IC"},null,null,null,null,"Operator: ","Kent Enviropower Limited"]
[]
["Facility:",{"$f":"+'Cover Page'!B33:I33","v":"Kent Enviropower Limited"},null,null,null,"Form:","Energy 1"]
[]
["Reporting  Period from: ",null,null,{"$f":"+'Perf. Form 1'!D6:E6","v":"2022-01-01"},null,"to:",{"$f":"+'Perf. Form 1'!G6:H6","v":"2022-12-31"}]
[]
["Energy Source",null,null,"Energy Usage",null,"Unit","Specific Useage (KWh/tonne incinerated"]
["Electricity Produced",null,null,{"$f":"+'Operational Data'!G24","v":268538},null,"MWh",{"$f":"+'Operational Data'!H24","v":579.14884715006349}]
["Electricity Imported   ",null,null,{"$f":"+'Operational Data'!G27","v":1939},null,"MWh",{"$f":"+'Operational Data'!H27","v":4.1817903411210819}]
["Electricity Exported",null,null,{"$f":"+'Operational Data'!G25","v":208713.88},null,"MWh",{"$f":"+'Operational Data'!H25","v":450.12773978437576}]
["Gas Oil",null,null,1184.51,null,"tonnes",29.71]
["Steam/hot water exported",null,null,{"$f":"+'Operational Data'!G30","v":0},null,"GWh",{"$f":"+'Operational Data'!H30","v":"-"}]
[]
[]
[]
["Operator’s comments :"]
["Electricity generation has improved from 2021 and the use of gas oil has seen a significant improvement on 2021 from 2302 tonnes to 1184 tonnes."]
[]
[]
[]
[]
[]
[]
[]
[]
[]
["Signed: ",null,null,null,null,null,"Date:","27th January 2023"]

{"sheet":"Permit Compliance","index":7,"n_rows":59,"n_cols":12,"rows_kept":59,"cut":false,"hidden":false,"merged":[[22,1,22,3],[22,4,22,6],[26,4,26,9],[36,1,36,3],[36,4,36,6],[37,1,37,3],[22,7,22,9],[24,1,24,3],[35,1,35,3],[35,4,35,6],[34,7,34,9],[23,1,23,3],[23,4,23,6],[23,7,23,9],[26,1,26,3],[34,1,34,3],[34,4,34,6],[24,7,24,8],[25,7,25,8],[40,4,40,6],[41,1,41,3],[41,4,41,6],[42,1,42,3],[42,4,42,6],[37,4,37,6],[21,1,21,3],[30,1,30,3],[30,4,30,6],[31,1,31,3],[31,4,31,6],[32,1,32,3],[32,4,32,6],[33,1,33,3],[33,4,33,6],[25,1,25,3],[24,4,24,6],[25,4,25,6],[28,0,28,10],[29,1,29,3],[29,4,29,6],[29,7,29,9],[30,7,31,9],[32,7,33,9],[42,7,42,9],[43,1,43,3],[43,4,43,6],[40,1,40,3],[38,1,38,3],[53,1,53,3],[53,4,53,6],[39,1,39,3],[39,4,39,6],[38,4,38,6],[46,1,46,3],[46,4,46,6],[47,1,47,3],[47,4,47,6],[44,1,44,3],[44,4,44,6],[45,1,45,3],[45,4,45,6],[35,7,41,9],[43,7,51,9],[52,7,56,9],[52,1,52,3],[52,4,52,6],[50,1,50,3],[57,4,57,6],[57,7,57,9],[54,1,54,3],[54,4,54,6],[55,1,55,3],[55,4,55,6],[48,1,48,3],[48,4,48,6],[49,1,49,3],[49,4,49,6],[56,1,56,3],[56,4,56,6],[50,4,50,6],[51,1,51,3],[51,4,51,6],[7,0,7,1],[7,2,7,8],[8,0,8,1],[8,2,8,4],[8,5,8,8],[19,1,19,3],[19,4,19,6],[19,7,19,9],[20,1,20,3],[20,4,20,6],[20,7,20,9],[16,2,16,4],[16,5,16,8],[15,2,15,4],[15,5,15,8],[16,0,16,1],[18,0,18,10],[8,11,17,14],[58,4,58,8],[9,0,9,1],[9,2,9,4],[9,5,9,8],[10,0,10,1],[10,2,10,4],[10,5,10,8],[11,0,11,1],[11,2,11,4],[11,5,11,8],[12,0,12,1],[12,2,12,4],[12,5,12,8],[13,0,13,1],[13,2,13,4],[13,5,13,8],[14,0,14,1],[14,2,14,4],[14,5,14,8],[15,0,15,1],[21,4,21,6],[21,7,21,9],[57,1,57,3]]}
[{"$f":"+'Cover Page'!$B$29","v":"Annual Performance Report 2022"},null,null,null,{"$f":"+'Cover Page'!$B$33","v":"Kent Enviropower Limited"}]
[]
["Summary of Permit Compliance"]
[]
["Compliance with permit limits for continuously monitored pollutants"]
[]
["The plant met its emission limits as shown in the table below:"]
["Substance",null,"Percentage time compliant during operation",null,null,null,null,null,null,null,null,"Notes:"]
[null,null,"Half-hourly limit",null,null,"Daily limit",null,null,null,null,null,"Report to 2 decimal places, i.e. xx.xx%\n\nPlease provide a brief summary of each notification or non-compliance in the table (rather than just referring to notifications that were sent to the Regulator).  \n\n"]
["Particulates",null,1,null,null,1]
["Oxides of nitrogen",null,0.99990000000000001,null,null,1]
["Sulphur dioxide",null,1,null,null,1]
["Carbon monoxide",null,0.99990000000000001,null,null,1]
["Total organic carbon",null,1,null,null,1]
["Hydrogen chloride",null,0.99990000000000001,null,null,1]
["Ammonia",null,1,null,null,1]
[]
[]
["Summary of any notifications or non-compliances under the permit"]
["Date","Summary of notification or non-compliance [including Line/Reference]",null,null,"Reason ",null,null,"Measures taken to prevent reoccurrence"]
["2022-01-28","089 Schedule 1 Power Cut",null,null,"Site turbine tripped",null,null,"No evidence of any environmental impact"]
["2022-02-12","025 L3 HCl abnormal operation",null,null,"Abatement system failure",null,null,"•\tA review of the planned maintenance on the compensators will be carried out.\n•\tThe existing procedure will be reviewed to determine if any lessons can be learnt.\n•\tInvestigate the possibility of auto switch over between fans on a low pressure alarm."]
["2022-06-03","026 L1 SO2 abnormal operation",null,null,"Significant increase in moisture conditions",null,null,"The event occurred and ended by the end of the 30 minute period."]
["2022-10-25","091 Schedule 5 Line 1 CO 10 min",null,null,"Function group not started",null,null,"Clear indication on the CEMS main control room screen of the number of allowable CO exceedances that are permitted between midnight to midnight has been included"]
["2022-11-11","092 Schedule 5 Line 2 NOx half hour",null,null,"The following contributed and require better control: -\n•\tPrimary combustion temperatures.\n•\tRecirc fan control.\n•\tPrimary air fan control.\n•\tWaste CV fluctuations. ",null,null,"Nox control procedure reviewed and reissued on 4.1.2023\nNew procedure attached.\nNo further action reqd."]
["2022-11-29","093 Schedule 5  Line 1 PAC dosing ",null,null,"Alarm categorisation was too low and considered not urgent.",null,null,"The alarm categorisation raised to \"high\" on the DCS system on 6th Jan 2023"]
["2022-12-17","094 Schedule 5 Line 2 HCl half hour",null,null,"At the time this report was issued this notification was still being investigated via root cause analysis and no reason or corrective actions are available."]
[]
["Summary of any complaints received and actions taken to resolve them."]
["Date","Summary of complaint [including Line/Reference]",null,null,"Reason *",null,null,"Measures taken to prevent reoccurrence"]
["2022-01-28","Queues","Queues","Queues","Substantiated Operator","Substantiated Operator","Substantiated Operator","Customers arriving at the facility before the weighbridge was open. All customers contacted and advised of facility opening times."]
["2022-02-01","Queues","Queues","Queues","Substantiated Operator","Substantiated Operator","Substantiated Operator"]
["2022-03-31","Odour","Odour","Odour","Substantiated Operator","Substantiated Operator","Substantiated Operator","All odour complaints have been justified on wind direction information. Following any odour complaint the facility carries out an odour survey and checks all odour controls are in place and compliant. The complainant is then contacted (if details are avialable) and advised of any findings and very often invited to the facility for a site tour."]
["2022-04-03","Odour","Odour","Odour","Substantiated Operator","Substantiated Operator","Substantiated Operator"]
["2022-04-22","Queues","Queues","Queues","Substantiated Operator","Substantiated Operator","Substantiated Operator","Customers arriving at the facility before the weighbridge was open. All customers contacted and advised of facility opening times."]
["2022-05-27","Odour","Odour","Odour","Substantiated Operator","Substantiated Operator","Substantiated Operator","All odour complaints have been justified on wind direction information. Following any odour complaint the facility carries out an odour survey and checks all odour controls are in place and compliant. The complainant is then contacted (if details are avialable) and advised of any findings and very often invited to the facility for a site tour."]
["2022-06-08","Odour","Odour","Odour","Substantiated Operator","Substantiated Operator","Substantiated Operator"]
["2022-06-13","Odour","Odour","Odour","Substantiated Operator","Substantiated Operator","Substantiated Operator"]
["2022-07-09","Odour","Odour","Odour","Substantiated Operator","Substantiated Operator","Substantiated Operator"]
["2022-07-13","Odour","Odour","Odour","Substantiated Operator","Substantiated Operator","Substantiated Operator"]
["2022-07-13","Odour","Odour","Odour","Substantiated Operator","Substantiated Operator","Substantiated Operator"]
["2022-07-14","Odour","Odour","Odour","Substantiated Operator","Substantiated Operator","Substantiated Operator"]
["2022-08-11","Flies","Flies","Flies","Not Substantiated Operator","Not Substantiated Operator","Not Substantiated Operator","N/A"]
["2022-08-16","Odour","Odour","Odour","Substantiated Operator","Substantiated Operator","Substantiated Operator","All odour complaints have been justified on wind direction information. Following any odour complaint the facility carries out an odour survey and checks all odour controls are in place and compliant. The complainant is then contacted (if details are avialable) and advised of any findings and very often invited to the facility for a site tour."]
["2022-08-25","Odour","Odour","Odour","Substantiated Operator","Substantiated Operator","Substantiated Operator"]
["2022-08-28","Odour","Odour","Odour","Substantiated Operator","Substantiated Operator","Substantiated Operator"]
["2022-09-10","Odour","Odour","Odour","Substantiated Operator","Substantiated Operator","Substantiated Operator"]
["2022-09-16","Odour","Odour","Odour","Substantiated Operator","Substantiated Operator","Substantiated Operator"]
["2022-09-17","Odour","Odour","Odour","Substantiated Operator","Substantiated Operator","Substantiated Operator"]
["2022-09-20","Odour","Odour","Odour","Substantiated Operator","Substantiated Operator","Substantiated Operator"]
["2022-09-25","Odour","Odour","Odour","Substantiated Operator","Substantiated Operator","Substantiated Operator"]
["2022-09-25","Odour","Odour","Odour","Substantiated Operator","Substantiated Operator","Substantiated Operator"]
["2022-12-02","Queues","Queues","Queues","Substantiated Operator","Substantiated Operator","Substantiated Operator","The facility was building up waste stocks for the Christmas period and increased the opening times to allow customers to deliver waste over night."]
["2022-12-02","Queues","Queues","Queues","Substantiated Operator","Substantiated Operator","Substantiated Operator"]
["2022-12-02","Queues","Queues","Queues","Substantiated Operator","Substantiated Operator","Substantiated Operator"]
["2022-12-02","Queues","Queues","Queues","Substantiated Operator","Substantiated Operator","Substantiated Operator"]
["2022-12-02","Queues","Queues","Queues","Substantiated Operator","Substantiated Operator","Substantiated Operator"]
["2022-12-05","Odour","Odour","Odour","Substantiated Operator","Substantiated Operator","Substantiated Operator","All odour complaints have been justified on wind direction information. Following any odour complaint the facility carries out an odour survey and checks all odour controls are in place and compliant. The complainant is then contacted (if details are avialable) and advised of any findings and very often invited to the facility for a site tour."]
[null,null,null,null,"* including whether substantiated by the operator or the EA"]

{"sheet":"Improvements","index":8,"n_rows":24,"n_cols":5,"rows_kept":24,"cut":false,"hidden":false,"merged":[[22,0,22,8],[23,0,28,8],[4,0,4,8],[5,0,9,8],[11,0,11,8],[12,0,15,8],[17,0,17,8],[18,0,20,8]]}
[{"$f":"+'Cover Page'!$B$29","v":"Annual Performance Report 2022"},null,null,null,{"$f":"+'Cover Page'!$B$33","v":"Kent Enviropower Limited"}]
[]
["Summary of Plant Improvements"]
[]
["Summary of any efficiency improvements that have been completed within the year."]
["Outside of planned outages plant availability has increased on previous years’ performance, whilst improvements to the plant control systems have led to greater plant stability, in turn reducing the need for manual intervention. Air ingress testing has been completed by an external contractor which has improved efficiency, to the point that FCC have purchased their own helium test equipment and are undertaking training of individuals in-house."]
[]
[]
[]
[]
[]
["Summary of any permit improvement conditions that have been completed within the year and the resulting environmental benefits."]
["New BREF permit issued on 19th April 2022 as BR4551 IV version 012.\nThe following conditions have been completed:-\nImprovement condition 1 (IC1) - completion of BAT conclusions.\nImprovement condition 5 (IC5) - no longer required to carry out assessment for energy efficiency.\n"]
[]
[]
[]
[]
["Summary of any changes to the plant or operating techniques which required a variation to the permit and a summary of the resulting environmental impact."]
["New BREF permit issued on 19th April 2022 as BR4551 IV version 012.\nThere are a significant number of emission limit value changes that shall require limit values to change during 2023."]
[]
[]
[]
["Summary of any other improvements made to the plant or planned to be made and a summary of the resulting environmental benefits."]
["1. Ongoing progress to replacing all standard lighting with low energy LED lighting.\n2. A planned 'abatement' risk review is planned for 2023.\n3. Currently planned to install vehicle electric charging points.\n4. Planned installation of ID fan variable speed drives to reduce parasitic load and export more to the grid.\n5. Investment in 2 x new front loaders and 1 x road sweeper with improved environmental performance (Low NOx engines)."]

{"sheet":"Public Liasion","index":9,"n_rows":27,"n_cols":5,"rows_kept":27,"cut":false,"hidden":false,"merged":[[23,0,24,1],[23,2,24,8],[26,0,26,8],[15,0,16,1],[17,0,18,1],[19,0,20,1],[15,2,20,8],[21,0,22,1],[21,2,22,8],[14,0,14,1],[14,2,14,8],[5,0,5,1],[5,2,5,8],[6,0,7,1],[8,0,9,1],[10,0,11,1],[13,0,13,8],[6,2,11,8]]}
[{"$f":"+'Cover Page'!$B$29","v":"Annual Performance Report 2022"},null,null,null,{"$f":"+'Cover Page'!$B$33","v":"Kent Enviropower Limited"}]
[]
["Details of Public & Stakeholder Liasion"]
[]
["Summary of events held during the reporting year."]
["Date",null,"Description"]
["2022-02-01",null,"The Facility has an active liaison group involving representatives from the following stakeholders:\n\n• Chairman - Mr Brian White\n• Environment Agency \n• 10 Local Residents \n• Councillors Walker and Hammond (TMBC members) \n• Councillors Robertson, Harwood and Daley (MBC members). Cllr Daley is also a member of KCC.\n• Councillors Homewood and Bird (KCC members)\n• Maidstone Borough Council Environmental Health, Wilcock \n• Councillors Walker and Balcombe (Aylesford Parish Council)\n• Tonbridge & Malling & Maidstone Borough Council Environmental Health \n• Kent County Council Waste Management \n• Kent Enviropower"]
[]
["2022-06-07"]
[]
["2022-10-17"]
[]
[]
["List of events planned for next year"]
["Date",null,"Description"]
["February 2023",null,"Opposite are the months for the Liaison meetings planned for 2023. There have been some spaces that have become available at the meeting. Invites have been sent out to prospective new members and all spaces have now been filled."]
[]
["June 2023"]
[]
["October 2023"]
[]
[]
[]
[]
[]
[]
["If you wish to be involved in the public liasion programme, please contact \nBrian White (Chairman) - Email: drbdwhite@yahoo.co.uk"]

{"sheet":"CO2 N2O","index":10,"n_rows":23,"n_cols":6,"rows_kept":23,"cut":false,"hidden":false,"merged":[[22,0,23,2],[4,0,4,2],[8,1,8,2],[10,0,10,2],[12,1,12,2],[15,0,15,2],[17,1,17,2],[19,4,19,14],[17,4,17,14],[12,4,12,14],[8,4,8,14],[19,1,19,2]]}
[{"$f":"+'Cover Page'!$B$29","v":"Annual Performance Report 2022"},null,{"$f":"+'Cover Page'!$B$33","v":"Kent Enviropower Limited"}]
[]
["Carbon dioxide emissions and biogenic content of waste inputs",null,null,null,"Notes:"]
[]
["Carbon dioxide emissions (all types of plant)"]
["Annual mass of carbon dioxide released","x tonnes ",509512]
["Annual mass of carbon dioxide released per tonne of waste burned","x tonnes ",1.1000000000000001]
["Annual mass of carbon dioxide released per MWh of energy exported","x tonnes ",2.44]
["Description of how annual carbon dioxide mass emission has been calculated","CO2 is obtained from a QAL 2 calibrated CEMS",null,null,"Note 1: Where available, data from CO2 CEMS should be used. Otherwise, where no CEMS data is available, a suitable emissions factor should be used based on the tonnage of waste burned e.g.0.992 tCO2/t waste as per Tolvik report 2021, or other justified emissions factor  - refer to embedded Environment Agency guidance note above or updated version for suitable descriptive text."]
[]
["Nitrous oxide emissions (only plants which use ammonia or urea to abate NOx emissions)"]
["Annual mass emissions of nitrous oxide","x tonnes ",6.9409999999999998]
["Description of how annual nitrous oxide mass emission has been calculated","N2O is obtained from a QAL 2 calibrated CEMS",null,null,"Note 2: Where available, data from N2O CEMS should be used, or if no CEMS data is available, from periodic monitoring. Otherwise, a suitable emissions factor should be used based on the tonnage of waste burned e.g. 0.0981 kgN20/t waste as per 2021 Pollution Inventory data for plants with urea-based SNCR - refer to embedded Environment Agency guidance note above or updated version for suitable descriptive text."]
["Total annual carbon dioxide and nitrous oxide emissions as carbon dioxide equivalent (whereby 1 t nitrous oxide is equivalent to 298 t carbon dioxide)","x tonnes CO2e",2068]
[]
["Biogenic fraction of the waste and biogenic CO2 emissions (only plants burning residual municipal waste, refuse derived fuel or solid recovered fuel)"]
["Yearly average biogenic percentage of the waste by net calorific value (NCV)","x %",51.47]
["Description of how biogenic NCV percentage has been calculated or estimated","Waste feed analysis carried out annually (these figures are from the 2022 report). The % recorded is all wastes (recorded at 99.64%) minus the following non biogenic waste:-\nPlastic film 11.37%\nDense plastic 25.55%\nNote: Textiles 11.25% - This calculation assumed textiles are 100% biogenic.",null,null,"Note 3: Where available, data from waste sampling should be used; otherwise, an estimated figure with justification can be used, or a figure assumed on the basis of a national average e.g. 2017 WRAP data for residual waste of 51.8% biogenic energy content - refer to embedded Environment Agency guidance note above or updated version for suitable descriptive text, quoting standards where relevant. "]
["Percentage of total carbon dioxide emissions arising from biogenic waste","x %",51.47,null,null,"newsnow"]
["Description of how percentage biogenic carbon dioxide emissions have been calculated","Used the same figure as the biogenic NCV %. Facility does not have BIOMA but shall carry out C14 testing during the first half year of 2023.",null,null,"Note 4: Examples include direct measurement via C14 method or BIOMA software - refer to embedded Environment Agency guidance note above or updated version for suitable descriptive text, quoting standards where relevant. Otherwise, as an approximation (and in lieu of any more accurate metrics which may be developed in future), the measured or estimated biogenic fraction by net calorific value can be assumed to be the same as the biogenic CO2 fraction of the total CO2 emissions from the plant. "]
[]
["Comments:"]
["CO2 and N2O have come directly from the continuous emission monitoring system (CEMS) and are both QAL 2 caibrated with calibration functions in place."]

{"sheet":"Residue Quality ","index":11,"n_rows":32,"n_cols":6,"rows_kept":32,"cut":false,"hidden":false,"merged":[[31,0,36,6],[28,3,28,4],[30,0,30,6],[23,0,24,1],[25,0,25,1],[26,0,26,1],[27,0,27,1],[28,0,28,1],[25,3,25,4],[26,3,26,4],[25,5,25,6],[26,5,26,6],[27,5,27,6],[28,5,28,6],[18,0,19,1],[18,2,19,6],[27,3,27,4],[23,2,24,2],[24,3,24,4],[24,5,24,6],[23,3,23,6],[22,0,22,6],[5,0,6,6],[10,0,11,1],[10,2,11,6],[16,0,17,1],[16,2,17,6],[12,0,13,1],[12,2,13,6],[14,0,15,1],[14,2,15,6],[8,0,8,6],[9,0,9,1],[9,2,9,6]]}
[{"$f":"+'Cover Page'!$B$29","v":"Annual Performance Report 2022"},null,null,null,{"$f":"+'Cover Page'!$B$33","v":"Kent Enviropower Limited"}]
[]
["Residue Quality Monitoring Requirements"]
[]
["Summary of monitoring undertaken and compliance"]
["Waste Description:  Bottom Ash\nParameter to be measured :\nTOC or LOI, Metals (Cd, Tl, Hg, Pb, Cr, Cu, Mn, Ni, As, Co, V, Sb, Zn)  and  their  compounds  and  \nthe total   soluble   fraction   of   these metals, dioxins/ furans and dioxin like PCB’s. Sampling \nand analysis as    per    Agency    ash    sampling protocol.\nFrequency:\nQuarterly      (with      the exception   of   the   total soluble   fraction   which shall   be   \nsampled   and analysed  before  the  use of   a   new   disposal   or recycling route).\nHazard assessment undertaken twice a month (24 samples a year)"]
[]
[]
["Commentary on any specific events"]
["Date & Event",null,"Description"]
["NA",null,"NA"]
[]
[]
[]
[]
[]
[]
[]
[]
[]
[]
[]
["Residue Quality Monitoring Results"]
["Parameter (unit) ",null,"Limit","Normal Operation "]
[null,null,null,"Bottom ash  ",null,"APC Residues"]
["Loss on Ignition (average %)",null,"Not limit set","1.67 *"]
["Total Organic Carbon (average %)",null,"<3%",1.1200000000000001]
["No. of Assessments Undertaken",null,"---","28*",null,4]
["No. of Hazardous Results",null,"---",0]
[]
["Comments :"]
["* The new permit variation BREF (BR4551IC version 012) no longer requires LOI to be recorded.\n** This equates to 24 IBA hazard assessments and 4 quarterly reports."]

{"sheet":"Water","index":12,"n_rows":36,"n_cols":9,"rows_kept":36,"cut":false,"hidden":false,"merged":[[29,0,29,2],[29,3,29,4],[26,0,26,2],[26,3,26,4],[27,0,27,2],[27,3,27,4],[28,0,28,2],[28,3,28,4],[23,0,23,2],[23,3,23,4],[24,0,24,2],[24,3,24,4],[25,0,25,2],[25,3,25,4],[21,0,21,8],[22,0,22,2],[22,3,22,4],[14,0,15,1],[16,0,17,1],[18,0,19,1],[18,2,19,8],[14,2,17,8],[5,0,6,8],[7,0,8,8],[9,0,10,8],[12,0,12,8],[13,0,13,1],[13,2,13,8],[30,0,30,2],[31,0,31,2],[32,0,32,2],[30,3,30,4],[31,3,31,4],[32,3,32,4],[33,0,33,2],[34,0,34,2],[35,0,35,2],[33,3,33,4],[34,3,34,4],[35,3,35,4]]}
[{"$f":"+'Cover Page'!$B$29","v":"Annual Performance Report 2022"},null,null,null,{"$f":"+'Cover Page'!$B$33","v":"Kent Enviropower Limited"}]
[]
["Emissions to Water"]
[]
["Summary of monitoring undertaken and compliance"]
["Parameters for which reports shall be made, in accordance with conditions of the Consent to the Discharge of Trade Effluent issued by Southern Water, are listed below and are measured monthly. \n\nThese are not Environmental Permit limits but limits for disposal of effluent water discharged down sewage drains."]
[]
[]
[]
[]
[]
[]
["Commentary on any specific events"]
["Date & Event",null,"Description"]
["2022-03-01",null,"High suspended solids recorded\nInvestigation identified that new sample point 7.3 does not always contain enough water (non representative sample) and solids being sampled. New sampling point has been identified and sampling procedure has been rewritten."]
[]
["2022-07-01"]
[]
[]
[]
[]
["Emissions to Water / Sewer"]
["Parameter",null,null,"Monitoring Frequency",null,"Limit","Target","Max.","Average"]
["Arsenic",null,null,"monthly",null,1,1,0.02,8.3333333333333315E-3]
["COD shaken",null,null,"monthly",null,800,800,112,25.916666666666668]
["Chromium",null,null,"monthly",null,1,1,0.1,2.5000000000000005E-2]
["Copper",null,null,"monthly",null,1,1,0.3,6.1666666666666675E-2]
["Fluoride",null,null,"monthly",null,2,2,0.7,0.27583333333333337]
["Lead",null,null,"monthly",null,1,1,0.2,2.3333333333333341E-2]
["Molybdenum",null,null,"monthly",null,1,1,0.03,9.1666666666666667E-3]
["Nickel",null,null,"monthly",null,1,1,0.1,1.5833333333333335E-2]
["Selenium",null,null,"monthly",null,1,1,0.01,7.4999999999999997E-3]
["Suspended solids",null,null,"monthly",null,200,200,837,115.08333333333333]
["Sulphate",null,null,"monthly",null,500,500,285,69]
["Zinc",null,null,"monthly",null,3,3,1.3,0.16333333333333336]
["pH",null,null,"monthly",null,null,null,7.5,5.2499999999999991]

{"sheet":"Air (periodic)","index":13,"n_rows":42,"n_cols":13,"rows_kept":42,"cut":false,"hidden":false,"merged":[[13,0,13,1],[18,3,18,4],[19,3,19,4],[22,0,22,1],[23,0,23,1],[17,0,17,1],[20,0,20,1],[21,0,21,1],[15,3,15,4],[16,3,16,4],[17,3,17,4],[23,3,23,4],[13,3,13,4],[24,3,24,4],[24,0,24,1],[25,0,25,1],[14,0,14,1],[25,3,25,4],[14,3,14,4],[20,3,20,4],[21,3,21,4],[22,3,22,4],[26,0,26,1],[26,3,26,4],[27,0,27,1],[31,3,31,4],[37,3,37,4],[36,3,36,4],[28,0,28,1],[35,3,35,4],[37,0,37,1],[32,3,32,4],[27,3,27,4],[28,3,28,4],[38,0,38,1],[39,0,39,1],[29,0,29,1],[29,3,29,4],[30,0,30,1],[30,3,30,4],[41,0,42,9],[18,0,18,1],[19,0,19,1],[15,0,15,1],[16,0,16,1],[31,0,31,1],[32,0,32,1],[33,0,33,1],[34,0,34,1],[35,0,35,1],[36,0,36,1],[33,3,33,4],[34,3,34,4],[40,0,40,9],[38,3,38,4],[39,3,39,4],[5,12,8,15],[8,0,8,9],[5,0,6,9],[9,12,12,15],[9,0,10,1],[9,5,9,9],[9,3,10,4],[9,2,10,2],[11,3,11,4],[12,3,12,4],[11,0,11,1],[12,0,12,1]]}
[{"$f":"+'Cover Page'!$B$29","v":"Annual Performance Report 2022"},null,null,null,{"$f":"+'Cover Page'!$B$33","v":"Kent Enviropower Limited"}]
[]
["Emissions to Air (periodically monitored)"]
[]
["Summary of monitoring undertaken, standards used and compliance",null,null,null,null,null,null,null,null,null,null,null,"Notes:"]
["Samples taken as required by the new permit variation BREF BR4551IC version 12",null,null,null,null,null,null,null,null,null,null,null,"Template may require adjustment for any bespoke monitoring requirements of permit. "]
[]
[]
["Results of emissions to air that are periodically monitored"]
["Substance",null,"Ref. Period","Emission Limit Value",null,"Average",null,null,null,null,null,null,"User to add additional tables as necessary, depending on whether quarterly or bi-annual reporting is required for the compliance year"]
[null,null,null,null,null,"A1","A2","A3","A4","A5"]
["Cadmium & Thallium",null,"1 hr","0.05 mg/m3",null,1.3500000000000001E-3,1.5E-3,1.65E-3]
["Heavy Metals",null,"1 hr","0.5 mg/m3",null,0.1195,0.13849999999999998,0.18300000000000002]
["Mercury",null,"1 hr","0.05 mg/m3",null,1E-3,1.4E-3,1.2000000000000001E-3]
["Hydrogen Fluoride",null,"1 hr","1 mg/m3",null,0.24349999999999999,7.2500000000000009E-2,5.4499999999999993E-2]
["Nitrous Oxide",null,"4 hrs","None set mg/m3",null,20.099999999999998,15.05,15.65]
["Dioxins / furans (I-TEQ)6",null,"6 hrs","0.1 µg/m3",null,3.7499999999999999E-2,3.2000000000000001E-2,2.6999999999999996E-2]
["Dioxins / furans (WHO-TEQ Humans / Mammals) 6",null,"6 hrs","None set µg/m3",null,3.7999999999999999E-2,3.4000000000000002E-2,0.03]
["Dioxins / furans (WHO-TEQ Fish) 6",null,"6 hrs","None set µg/m3",null,3.15E-2,2.8000000000000001E-2,2.4E-2]
["Dioxins / furans (WHO-TEQ Birds) 6",null,"6 hrs","None set µg/m3",null,0.04,3.5500000000000004E-2,2.8499999999999998E-2]
["Dioxin-like PCBs (WHO-TEQ Humans / Mammals)6",null,"6 hrs","None set µg/m3",null,2.5999999999999999E-3,2.4499999999999999E-3,1.5500000000000002E-3]
["Dioxin-like PCBs (WHO-TEQ Fish)6",null,"6 hrs","None set µg/m3",null,1.1549999999999999E-4,1.1400000000000001E-4,7.2999999999999999E-5]
["Dioxin-like PCBs (WHO-TEQ Birds)6",null,"6 hrs","None set µg/m3",null,2.2600000000000002E-2,5.3499999999999997E-3,3.2500000000000003E-3]
["PAHs (DEFRA 16)",null,"6 hrs","None set µg/m3",null,0.15,0.23,0.21]
["Anthanthrene",null,"6 hrs","None set µg/m3",null,1.5E-3,3.0000000000000001E-3,2.0999999999999999E-3]
["Benzo{a}anthracene",null,"6 hrs","None set µg/m3",null,4.4999999999999997E-3,3.0000000000000001E-3,2.0999999999999999E-3]
["Benzo[b]fluoranthene",null,"6 hrs","None set µg/m3",null,4.1999999999999997E-3,3.0000000000000001E-3,2.0999999999999999E-3]
["Benzo[k]fluoranthene",null,"6 hrs","None set µg/m3",null,2.2000000000000001E-3,3.0000000000000001E-3,2.0999999999999999E-3]
["Benzo[b]naph(2,1-d}thiophene",null,"6 hrs","None set µg/m3",null,5.1000000000000004E-3,0.01,6.7999999999999996E-3]
["Benzo[c]phenanthrene",null,"6 hrs","None set µg/m3",null,1.6000000000000001E-3,3.0000000000000001E-3,2.0999999999999999E-3]
["Benzo[ghi]perylene",null,"6 hrs","None set µg/m3",null,1.5E-3,3.0000000000000001E-3,2.0999999999999999E-3]
["Benzo[a]pyrene",null,"6 hrs","None set µg/m3",null,2.8E-3,3.0000000000000001E-3,2.0999999999999999E-3]
["Cholanthrene",null,"6 hrs","None set µg/m3",null,1.5E-3,3.0000000000000001E-3,2.0999999999999999E-3]
["Chrysene",null,"6 hrs","None set µg/m3",null,6.1999999999999998E-3,3.7000000000000002E-3,2.4E-2]
["Cyclopenta(cd)pyrene",null,"6 hrs","None set µg/m3",null,3.3999999999999998E-3,3.0000000000000001E-3,2.0999999999999999E-3]
["Dibenzo[ah]anthracene",null,"6 hrs","None set µg/m3",null,1.5E-3,3.0000000000000001E-3,2.0999999999999999E-3]
["Dibenzo[ai]pyrene",null,"6 hrs","None set µg/m3",null,1.5E-3,3.0000000000000001E-3,2.0999999999999999E-3]
["Fluoranthene",null,"6 hrs","None set µg/m3",null,3.5999999999999997E-2,4.4999999999999998E-2,5.2999999999999999E-2]
["Indeno[1,2,3-cd]pyrene",null,"6 hrs","None set µg/m3",null,1.5E-3,3.0000000000000001E-3,2.0999999999999999E-3]
["Naphthalene",null,"6 hrs","None set µg/m3",null,7.6999999999999999E-2,0.14000000000000001,0.1]
["Comments :"]
["All determinants passed periodic testing."]

{"sheet":"Air (CEMS)","index":14,"n_rows":29,"n_cols":16,"rows_kept":29,"cut":false,"hidden":false,"merged":[[26,0,26,12],[28,0,29,12],[13,0,14,0],[5,0,6,12],[7,0,8,12],[10,0,10,12],[11,0,12,0],[11,2,12,2],[11,1,12,1],[11,3,11,4],[11,5,11,6],[11,7,11,8],[11,9,11,10],[11,11,11,12]]}
[{"$f":"+'Cover Page'!$B$29","v":"Annual Performance Report 2022"},null,null,null,null,null,null,null,{"$f":"+'Cover Page'!$B$33","v":"Kent Enviropower Limited"}]
[]
["Emissions to Air (continously monitored)"]
[null,null,null,null,null,null,null,null,null,null,null,null,null,null,null,"Notes:"]
["Summary of monitoring undertaken, standards used and compliance",null,null,null,null,null,null,null,null,null,null,null,null,null,null,"Template may require adjustment for any bespoke monitoring requirements of permit"]
["Monitoring is underatken as required by permit BR4551IC version 12 and all determinants are from QAL 2 calibrated CEMS.",null,null,null,null,null,null,null,null,null,null,null,null,null,null,"Report to 2 decimal places, i.e. xx.xx%"]
[]
[]
[]
[]
["Results of emissions to air that are continuously monitored (maximum and average values for each line)"]
["Substance","Reference Period","Emission Limit Value","A1",null,"A2",null,"A3"]
[null,null,null,"Max.","Avg.","Max.","Avg.","Max.","Avg."]
["Oxides of nitrogen","Daily mean","200 mg/m3 ",166.4,126.9,168.1,145.9,166.9,118.9]
[null,"½ hourly mean","400 mg/m3 ",310.5,127.5,465.6,145.9,326.39999999999998,131.5]
["Particulates","Daily mean","10 mg/m3",4.5999999999999996,1.1000000000000001,4.2,1.24,4.3,1.05]
[null,"½ hourly mean","30 mg/m3 ",20.5,1.0900000000000001,16.899999999999999,1.22,14.2,1.36]
["Total Organic Carbon ","Daily mean","10 mg/m3 ",1.7,0.4,1.8,0.28999999999999998,4,0.4]
[null,"* ½ hourly mean","* 10 mg/m3 ",1292.9000000000001,0.5,62.5,0.28999999999999998,176.9,0.43]
["Hydrogen chloride ","Daily mean","10 mg/m3 ",8.1999999999999993,3.28,7.7,4.96,8.3000000000000007,4.0999999999999996]
[null,"½ hourly mean","60 mg/m3 ",38.700000000000003,3.26,61.3,4.99,151,4.53]
["Sulphur dioxide","Daily mean","50 mg/m3 ",5.3,0.22,2.8,0.8,2.8,0.46]
[null,"½ hourly mean","200 mg/m3 ",232.8,0.25,188,0.81,38.6,0.47]
["Carbon monoxide ","Daily mean","50 mg/m3 ",35.799999999999997,4.82,21.8,3.16,18.2,5.46]
[null,"95%ile 10-min avg","150 mg/m3",15.15,"N/A",9.32,"N/A",28.9,"N/A"]
[" Ammonia","Daily mean","10 mg/m3",2,0.17,0.6,0.1,0.9,0.28999999999999998]
["* = delete or amend as appropriate"]
["Comments :"]
["* TOC is 97% of all half hour averages in a rolling year and this has been compliant for all periods."]

{"sheet":"HCl","index":15,"n_rows":79,"n_cols":17,"rows_kept":79,"cut":false,"hidden":false,"merged":[[12,16,15,18],[51,9,63,9],[66,9,78,9],[4,9,4,14],[4,1,4,3],[4,4,4,6],[48,0,51,6],[47,0,47,6],[6,9,18,9],[21,9,33,9],[36,9,48,9],[3,16,7,18],[9,16,11,18]]}
[{"$f":"+'Cover Page'!$B$29","v":"Annual Performance Report 2022"},null,null,null,{"$f":"+'Cover Page'!$B$33","v":"Kent Enviropower Limited"}]
[]
["Monitoring of Hydrogen Chloride emissions",null,null,"Whole Installation",null,null,"See  Notes in Cell Q3",null,null,{"$f":"+A3","v":"Monitoring of Hydrogen Chloride emissions"},null,null,null,"Per Combustion Line",null,null,"Notes:"]
[null,null,null,null,null,null,null,null,null,null,null,null,null,null,null,null,"User to add logic to complete Whole installation, Table A5:G18. From the data in Per Combustion Line, Table J6:O79, subject to No. of lines installed"]
["mg/Nm3","1/2 Hourly Reference Periods",null,null,"Daily Reference Periods"]
[{"$f":"+'Cover Page'!C39","v":2022},"1/2 hourly HCl ELV","Monthly 1/2 hourly mean","Highest 1/2 hourly maximum","Daily HCl ELV","Monthly daily mean","Highest daily maximum",null,null,{"$f":"+A6","v":2022},"mg/Nm3","Monthly 1/2 hourly mean","Monthly 1/2 hourly maximum","Monthly daily mean","Monthly daily maximum"]
["Jan",60,4.63,26.4,10,4.5599999999999996,8.3000000000000007,null,null,"A1","Jan",3.9,26.4,3.8,7.9]
["Feb",60,5.23,151,10,5.03,8.1999999999999993,null,null,null,"Feb",4.0999999999999996,38.700000000000003,4,8.1999999999999993]
["Mar",60,3.83,37.5,10,2.2999999999999998,5.7,null,null,null,"Mar",2.2999999999999998,37.5,2.4,5.7,null,"Whole Installation table A5:G18:"]
["Apr",60,4.0999999999999996,24.6,10,4.13,6.3,null,null,null,"Apr",3.6,24.6,3.6,6.3,null,"Mean: for 1/2 hourly and daily periods calculate mean of values across all operational combustion lines for the month"]
["May",60,4.53,16.2,10,4.5999999999999996,7.7,null,null,null,"May",3.5,16.2,3.6,6.2]
["Jun",60,3.83,17.8,10,3.83,5.8,null,null,null,"Jun",2.6,17.8,2.6,3.7]
["Jul",60,4.8600000000000003,28.2,10,4.93,7.3,null,null,null,"Jul",4.2,20.100000000000001,4.4000000000000004,7.2,null,"Maximum: for 1/2 hourly and daily periods use the highest value across all operational combustion lines for the month"]
["Aug",60,4.9000000000000004,19.399999999999999,10,4.93,5.9,null,null,null,"Aug",4.2,10.6,4.3,5.8]
["Sep",60,4.4000000000000004,30.3,10,4.3600000000000003,6.4,null,null,null,"Sep",3.8,14.1,3.8,6.1]
["Oct",60,3.9,14.7,10,3.93,6.1,null,null,null,"Oct",2.9,14.7,2.9,5.4]
["Nov",60,4.0999999999999996,34.700000000000003,10,4.0599999999999996,6.5,null,null,null,"Nov",2.9,15.3,2.8,6]
["Dec",60,2.83,61.3,10,2.73,4.7,null,null,null,"Dec",1.2,4.2,1.2,1.8]
[null,null,null,null,null,null,null,null,null,null,"Annual",{"$f":"AVERAGE(L7:L18)","v":3.2666666666666662},{"$f":"MAX(M7:M18)","v":38.700000000000003},{"$f":"AVERAGE(N7:N18)","v":3.2833333333333332},{"$f":"MAX(O7:O18)","v":8.1999999999999993}]
[]
[null,null,null,null,null,null,null,null,null,{"$f":"+A6","v":2022},"mg/Nm3","Monthly 1/2 hourly mean","Monthly 1/2 hourly maximum","Monthly daily mean","Monthly daily maximum"]
[null,null,null,null,null,null,null,null,null,"A2","Jan",4.7,23.1,4.5999999999999996,7.4]
[null,null,null,null,null,null,null,null,null,null,"Feb",5.9,25.9,5.8,7.7]
[null,null,null,null,null,null,null,null,null,null,"Mar",4.5,12.7,4.5,5.5]
[null,null,null,null,null,null,null,null,null,null,"Apr",5.2,22,5.3,6.2]
[null,null,null,null,null,null,null,null,null,null,"May",5.2,15.4,5.3,6.3]
[null,null,null,null,null,null,null,null,null,null,"Jun",4.7,12,4.7,5.8]
[null,null,null,null,null,null,null,null,null,null,"Jul",5.4,28.2,5.4,5.7]
[null,null,null,null,null,null,null,null,null,null,"Aug",5.4,19.399999999999999,5.4,5.7]
[null,null,null,null,null,null,null,null,null,null,"Sep",5.2,30.3,5.0999999999999996,6.4]
[null,null,null,null,null,null,null,null,null,null,"Oct",4.8,10.4,4.9000000000000004,6.1]
[null,null,null,null,null,null,null,null,null,null,"Nov",4.9000000000000004,34.700000000000003,4.9000000000000004,6.5]
[null,null,null,null,null,null,null,null,null,null,"Dec",4,61.3,3.7,4.7]
[null,null,null,null,null,null,null,null,null,null,"Annual",{"$f":"AVERAGE(L22:L33)","v":4.9916666666666663},{"$f":"MAX(M22:M33)","v":61.3},{"$f":"AVERAGE(N22:N33)","v":4.9666666666666668},{"$f":"MAX(O22:O33)","v":7.7}]
[]
[null,null,null,null,null,null,null,null,null,{"$f":"+A6","v":2022},"mg/Nm3","Monthly 1/2 hourly mean","Monthly 1/2 hourly maximum","Monthly daily mean","Monthly daily maximum"]
[null,null,null,null,null,null,null,null,null,"A3","Jan",5.3,23.4,5.3,8.3000000000000007]
[null,null,null,null,null,null,null,null,null,null,"Feb",5.7,151,5.3,7.7]
[null,null,null,null,null,null,null,null,null,null,"Mar",4.7,7.9,0,0]
[null,null,null,null,null,null,null,null,null,null,"Apr",3.5,15.3,3.5,5.6]
[null,null,null,null,null,null,null,null,null,null,"May",4.9000000000000004,12.8,4.9000000000000004,7.7]
[null,null,null,null,null,null,null,null,null,null,"Jun",4.2,10.1,4.2,5.7]
[null,null,null,null,null,null,null,null,null,null,"Jul",5,12.5,5,7.3]
[null,null,null,null,null,null,null,null,null,null,"Aug",5.0999999999999996,12.8,5.0999999999999996,5.9]
[null,null,null,null,null,null,null,null,null,null,"Sep",4.2,8.5,4.2,5.6]
[null,null,null,null,null,null,null,null,null,null,"Oct",4,9.6999999999999993,4,5]
[null,null,null,null,null,null,null,null,null,null,"Nov",4.5,8.8000000000000007,4.5,5.6]
["Comments :",null,null,null,null,null,null,null,null,null,"Dec",3.3,10.5,3.3,4.5999999999999996]
["No comments to add",null,null,null,null,null,null,null,null,null,"Annual",{"$f":"AVERAGE(L37:L48)","v":4.5333333333333332},{"$f":"MAX(M37:M48)","v":151},{"$f":"AVERAGE(N37:N48)","v":4.1083333333333334},{"$f":"MAX(O37:O48)","v":8.3000000000000007}]
[]
[null,null,null,null,null,null,null,null,null,{"$f":"+A6","v":2022},"mg/Nm3","Monthly 1/2 hourly mean","Monthly 1/2 hourly maximum","Monthly daily mean","Monthly daily maximum"]
[null,null,null,null,null,null,null,null,null,"A4","Jan"]
[null,null,null,null,null,null,null,null,null,null,"Feb"]
[null,null,null,null,null,null,null,null,null,null,"Mar"]
[null,null,null,null,null,null,null,null,null,null,"Apr"]
[null,null,null,null,null,null,null,null,null,null,"May"]
[null,null,null,null,null,null,null,null,null,null,"Jun"]
[null,null,null,null,null,null,null,null,null,null,"Jul"]
[null,null,null,null,null,null,null,null,null,null,"Aug"]
[null,null,null,null,null,null,null,null,null,null,"Sep"]
[null,null,null,null,null,null,null,null,null,null,"Oct"]
[null,null,null,null,null,null,null,null,null,null,"Nov"]
[null,null,null,null,null,null,null,null,null,null,"Dec"]
[null,null,null,null,null,null,null,null,null,null,"Annual",{"$f":"AVERAGE(L52:L63)","v":{"$error":"#DIV/0!"}},{"$f":"MAX(M52:M63)","v":0},{"$f":"AVERAGE(N52:N63)","v":{"$error":"#DIV/0!"}},{"$f":"MAX(O52:O63)","v":0}]
[]
[null,null,null,null,null,null,null,null,null,{"$f":"+A6","v":2022},"mg/Nm3","Monthly 1/2 hourly mean","Monthly 1/2 hourly maximum","Monthly daily mean","Monthly daily maximum"]
[null,null,null,null,null,null,null,null,null,"A5","Jan"]
[null,null,null,null,null,null,null,null,null,null,"Feb"]
[null,null,null,null,null,null,null,null,null,null,"Mar"]
[null,null,null,null,null,null,null,null,null,null,"Apr"]
[null,null,null,null,null,null,null,null,null,null,"May"]
[null,null,null,null,null,null,null,null,null,null,"Jun"]
[null,null,null,null,null,null,null,null,null,null,"Jul"]
[null,null,null,null,null,null,null,null,null,null,"Aug"]
[null,null,null,null,null,null,null,null,null,null,"Sep"]
[null,null,null,null,null,null,null,null,null,null,"Oct"]
[null,null,null,null,null,null,null,null,null,null,"Nov"]
[null,null,null,null,null,null,null,null,null,null,"Dec"]
[null,null,null,null,null,null,null,null,null,null,"Annual",{"$f":"AVERAGE(L67:L78)","v":{"$error":"#DIV/0!"}},{"$f":"MAX(M67:M78)","v":0},{"$f":"AVERAGE(N67:N78)","v":{"$error":"#DIV/0!"}},{"$f":"MAX(O67:O78)","v":0}]

{"sheet":"SO2","index":16,"n_rows":79,"n_cols":17,"rows_kept":79,"cut":false,"hidden":false,"merged":[[3,16,7,18],[9,16,11,18],[12,16,15,18],[66,9,78,9],[4,1,4,3],[4,4,4,6],[4,9,4,14],[6,9,18,9],[21,9,33,9],[36,9,48,9],[47,0,47,6],[48,0,51,6],[51,9,63,9]]}
[{"$f":"+'Cover Page'!$B$29","v":"Annual Performance Report 2022"},null,null,null,{"$f":"+'Cover Page'!$B$33","v":"Kent Enviropower Limited"}]
[]
["Monitoring of Sulphur dioxide emissions",null,null,"Whole Installation",null,null,"See  Notes in Cell Q3",null,null,{"$f":"+A3","v":"Monitoring of Sulphur dioxide emissions"},null,null,null,"Per Combustion Line",null,null,"Notes:"]
[null,null,null,null,null,null,null,null,null,null,null,null,null,null,null,null,"User to add logic to complete Whole installation, Table A5:G18. From the data in Per Combustion Line, Table J6:O79, subject to No. of lines installed"]
["mg/Nm3","1/2 Hourly Reference Periods",null,null,"Daily Reference Periods"]
[{"$f":"+'Cover Page'!C39","v":2022},"1/2 hourly SO2 ELV","Monthly 1/2 hourly mean","Highest 1/2 hourly maximum","Daily SO2 ELV","Monthly daily mean","Highest daily maximum",null,null,{"$f":"+A6","v":2022},"mg/Nm3","Monthly 1/2 hourly mean","Monthly 1/2 hourly maximum","Monthly daily mean","Monthly daily maximum"]
["Jan",200,0.2,14.5,50,0.2,0.6,null,null,"A1","Jan",0.1,9,0.1,0.3]
["Feb",200,0.23,26.5,50,0.23,0.7,null,null,null,"Feb",0.3,26.5,0.3,0.7]
["Mar",200,0.23,18.5,50,0.2,1,null,null,null,"Mar",0.2,18.100000000000001,0.2,0.4,null,"Whole Installation table A5:G18:"]
["Apr",200,0.76,59.5,50,0.76,2.8,null,null,null,"Apr",0.5,35.6,0.5,2.2999999999999998,null,"Mean: for 1/2 hourly and daily periods calculate mean of values across all operational combustion lines for the month"]
["May",200,0.6,149.4,50,0.56000000000000005,2,null,null,null,"May",0.4,149.4,0.3,2]
["Jun",200,0.6,232.8,50,0.6,5.3,null,null,null,"Jun",0.4,232.8,0.4,5.3]
["Jul",200,0.63,188,50,0.56000000000000005,1.9,null,null,null,"Jul",0.3,79.900000000000006,0.3,1.9,null,"Maximum: for 1/2 hourly and daily periods use the highest value across all operational combustion lines for the month"]
["Aug",200,0.46,18.2,50,0.46,1.7,null,null,null,"Aug",0.1,9.1999999999999993,0.1,0.4]
["Sep",200,0.56000000000000005,28,50,0.56000000000000005,1.7,null,null,null,"Sep",0.1,14.3,0.1,0.4]
["Oct",200,0.63,183.4,50,0.56000000000000005,2.1,null,null,null,"Oct",0.4,183.4,0.2,2.1]
["Nov",200,0.76,36.799999999999997,50,0.76,2.2000000000000002,null,null,null,"Nov",0.1,11.9,0.1,0.3]
["Dec",200,0.46,21.5,50,0.46,1.5,null,null,null,"Dec",0.1,11.8,0.1,0.6]
[null,null,null,null,null,null,null,null,null,null,"Annual",{"$f":"AVERAGE(L7:L18)","v":0.25},{"$f":"MAX(M7:M18)","v":232.8},{"$f":"AVERAGE(N7:N18)","v":0.22500000000000006},{"$f":"MAX(O7:O18)","v":5.3}]
[]
[null,null,null,null,null,null,null,null,null,{"$f":"+A6","v":2022},"mg/Nm3","Monthly 1/2 hourly mean","Monthly 1/2 hourly maximum","Monthly daily mean","Monthly daily maximum"]
[null,null,null,null,null,null,null,null,null,"A2","Jan",0.3,7.5,0.3,0.6]
[null,null,null,null,null,null,null,null,null,null,"Feb",0.3,20.399999999999999,0.3,0.7]
[null,null,null,null,null,null,null,null,null,null,"Mar",0.4,4.7,0.4,1]
[null,null,null,null,null,null,null,null,null,null,"Apr",1.1000000000000001,59.5,1.1000000000000001,2.8]
[null,null,null,null,null,null,null,null,null,null,"May",0.8,15.3,0.8,1.3]
[null,null,null,null,null,null,null,null,null,null,"Jun",0.9,30.7,0.9,1.5]
[null,null,null,null,null,null,null,null,null,null,"Jul",1.1000000000000001,188,0.9,1.8]
[null,null,null,null,null,null,null,null,null,null,"Aug",0.7,18.2,0.7,1.7]
[null,null,null,null,null,null,null,null,null,null,"Sep",1,28,1,1.7]
[null,null,null,null,null,null,null,null,null,null,"Oct",1,27.1,1,1.7]
[null,null,null,null,null,null,null,null,null,null,"Nov",1.4,36.799999999999997,1.4,2.2000000000000002]
[null,null,null,null,null,null,null,null,null,null,"Dec",0.8,16.3,0.8,1.5]
[null,null,null,null,null,null,null,null,null,null,"Annual",{"$f":"AVERAGE(L22:L33)","v":0.81666666666666676},{"$f":"MAX(M22:M33)","v":188},{"$f":"AVERAGE(N22:N33)","v":0.80000000000000016},{"$f":"MAX(O22:O33)","v":2.8}]
[]
[null,null,null,null,null,null,null,null,null,{"$f":"+A6","v":2022},"mg/Nm3","Monthly 1/2 hourly mean","Monthly 1/2 hourly maximum","Monthly daily mean","Monthly daily maximum"]
[null,null,null,null,null,null,null,null,null,"A3","Jan",0.2,14.5,0.2,0.5]
[null,null,null,null,null,null,null,null,null,null,"Feb",0.1,9.1999999999999993,0.1,0.4]
[null,null,null,null,null,null,null,null,null,null,"Mar",0.1,0.5,0,0]
[null,null,null,null,null,null,null,null,null,null,"Apr",0.7,38.6,0.7,2.8]
[null,null,null,null,null,null,null,null,null,null,"May",0.6,21.9,0.6,1]
[null,null,null,null,null,null,null,null,null,null,"Jun",0.5,23,0.5,1.1000000000000001]
[null,null,null,null,null,null,null,null,null,null,"Jul",0.5,14.9,0.5,1]
[null,null,null,null,null,null,null,null,null,null,"Aug",0.6,9.9,0.6,1.2]
[null,null,null,null,null,null,null,null,null,null,"Sep",0.6,17.7,0.6,1.2]
[null,null,null,null,null,null,null,null,null,null,"Oct",0.5,15.3,0.5,0.9]
[null,null,null,null,null,null,null,null,null,null,"Nov",0.8,19.8,0.8,1.4]
["Comments :",null,null,null,null,null,null,null,null,null,"Dec",0.5,21.5,0.5,1.2]
["No comments to add",null,null,null,null,null,null,null,null,null,"Annual",{"$f":"AVERAGE(L37:L48)","v":0.47500000000000003},{"$f":"MAX(M37:M48)","v":38.6},{"$f":"AVERAGE(N37:N48)","v":0.46666666666666673},{"$f":"MAX(O37:O48)","v":2.8}]
[]
[null,null,null,null,null,null,null,null,null,{"$f":"+A6","v":2022},"mg/Nm3","Monthly 1/2 hourly mean","Monthly 1/2 hourly maximum","Monthly daily mean","Monthly daily maximum"]
[null,null,null,null,null,null,null,null,null,"A4","Jan"]
[null,null,null,null,null,null,null,null,null,null,"Feb"]
[null,null,null,null,null,null,null,null,null,null,"Mar"]
[null,null,null,null,null,null,null,null,null,null,"Apr"]
[null,null,null,null,null,null,null,null,null,null,"May"]
[null,null,null,null,null,null,null,null,null,null,"Jun"]
[null,null,null,null,null,null,null,null,null,null,"Jul"]
[null,null,null,null,null,null,null,null,null,null,"Aug"]
[null,null,null,null,null,null,null,null,null,null,"Sep"]
[null,null,null,null,null,null,null,null,null,null,"Oct"]
[null,null,null,null,null,null,null,null,null,null,"Nov"]
[null,null,null,null,null,null,null,null,null,null,"Dec"]
[null,null,null,null,null,null,null,null,null,null,"Annual",{"$f":"AVERAGE(L52:L63)","v":{"$error":"#DIV/0!"}},{"$f":"MAX(M52:M63)","v":0},{"$f":"AVERAGE(N52:N63)","v":{"$error":"#DIV/0!"}},{"$f":"MAX(O52:O63)","v":0}]
[]
[null,null,null,null,null,null,null,null,null,{"$f":"+A6","v":2022},"mg/Nm3","Monthly 1/2 hourly mean","Monthly 1/2 hourly maximum","Monthly daily mean","Monthly daily maximum"]
[null,null,null,null,null,null,null,null,null,"A5","Jan"]
[null,null,null,null,null,null,null,null,null,null,"Feb"]
[null,null,null,null,null,null,null,null,null,null,"Mar"]
[null,null,null,null,null,null,null,null,null,null,"Apr"]
[null,null,null,null,null,null,null,null,null,null,"May"]
[null,null,null,null,null,null,null,null,null,null,"Jun"]
[null,null,null,null,null,null,null,null,null,null,"Jul"]
[null,null,null,null,null,null,null,null,null,null,"Aug"]
[null,null,null,null,null,null,null,null,null,null,"Sep"]
[null,null,null,null,null,null,null,null,null,null,"Oct"]
[null,null,null,null,null,null,null,null,null,null,"Nov"]
[null,null,null,null,null,null,null,null,null,null,"Dec"]
[null,null,null,null,null,null,null,null,null,null,"Annual",{"$f":"AVERAGE(L67:L78)","v":{"$error":"#DIV/0!"}},{"$f":"MAX(M67:M78)","v":0},{"$f":"AVERAGE(N67:N78)","v":{"$error":"#DIV/0!"}},{"$f":"MAX(O67:O78)","v":0}]

{"sheet":"NOx","index":17,"n_rows":79,"n_cols":17,"rows_kept":79,"cut":false,"hidden":false,"merged":[[3,16,7,18],[9,16,11,18],[12,16,15,18],[66,9,78,9],[4,1,4,3],[4,4,4,6],[4,9,4,14],[6,9,18,9],[21,9,33,9],[36,9,48,9],[47,0,47,6],[48,0,51,6],[51,9,63,9]]}
[{"$f":"+'Cover Page'!$B$29","v":"Annual Performance Report 2022"},null,null,null,{"$f":"+'Cover Page'!$B$33","v":"Kent Enviropower Limited"}]
[]
["Monitoring of Oxides of Nitrogen emissions",null,null,"Whole Installation",null,null,"See  Notes in Cell Q3",null,null,{"$f":"+A3","v":"Monitoring of Oxides of Nitrogen emissions"},null,null,null,"Per Combustion Line",null,null,"Notes:"]
[null,null,null,null,null,null,null,null,null,null,null,null,null,null,null,null,"User to add logic to complete Whole installation, Table A5:G18. From the data in Per Combustion Line, Table J6:O79, subject to No. of lines installed"]
["mg/Nm3","1/2 Hourly Reference Periods",null,null,"Daily Reference Periods"]
[{"$f":"+'Cover Page'!C39","v":2022},"1/2 hourly NOx ELV","Monthly 1/2 hourly mean","Highest 1/2 hourly maximum","Daily NOx ELV","Monthly daily mean","Highest daily maximum",null,null,{"$f":"+A6","v":2022},"mg/Nm3","Monthly 1/2 hourly mean","Monthly 1/2 hourly maximum","Monthly daily mean","Monthly daily maximum"]
["Jan",400,152.43,265.39999999999998,200,152.86000000000001,167.5,null,null,"A1","Jan",146.4,265.39999999999998,146.6,164.5]
["Feb",400,150.13,281.2,200,150.4,166,null,null,null,"Feb",145.69999999999999,253.9,146,160.69999999999999]
["Mar",400,147.63,219.2,200,97.1,162.6,null,null,null,"Mar",136.30000000000001,219.2,135.9,147.5,null,"Whole Installation table A5:G18:"]
["Apr",400,141.56,249.9,200,141.93,168.1,null,null,null,"Apr",134,223.8,134.30000000000001,154.1,null,"Mean: for 1/2 hourly and daily periods calculate mean of values across all operational combustion lines for the month"]
["May",400,137.93,235.7,200,137.93,165.5,null,null,null,"May",128.1,235.7,128.19999999999999,160.5]
["Jun",400,121.56,307.2,200,121.26,150.69999999999999,null,null,null,"Jun",113.3,307.2,112.7,130.19999999999999]
["Jul",400,119.46,213.3,200,118.86,147.80000000000001,null,null,null,"Jul",109.2,213.3,107.9,129.6,null,"Maximum: for 1/2 hourly and daily periods use the highest value across all operational combustion lines for the month"]
["Aug",400,120.56,364.5,200,120.9,160.30000000000001,null,null,null,"Aug",105.9,176.2,106.1,119.6]
["Sep",400,128.93,337.2,200,127.36,155.6,null,null,null,"Sep",118.1,165.2,114.8,135.19999999999999]
["Oct",400,137.69999999999999,330.9,200,137.16,166.4,null,null,null,"Oct",134.4,269,133.19999999999999,166.4]
["Nov",400,138.4,465.6,200,138.46,165.2,null,null,null,"Nov",132.69999999999999,250.4,132.69999999999999,156.80000000000001]
["Dec",400,123.7,310.5,200,123.4,159.4,null,null,null,"Dec",125.8,310.5,125.4,145.9]
[null,null,null,null,null,null,null,null,null,null,"Annual",{"$f":"AVERAGE(L7:L18)","v":127.49166666666667},{"$f":"MAX(M7:M18)","v":310.5},{"$f":"AVERAGE(N7:N18)","v":126.98333333333335},{"$f":"MAX(O7:O18)","v":166.4}]
[]
[null,null,null,null,null,null,null,null,null,{"$f":"+A6","v":2022},"mg/Nm3","Monthly 1/2 hourly mean","Monthly 1/2 hourly maximum","Monthly daily mean","Monthly daily maximum"]
[null,null,null,null,null,null,null,null,null,"A2","Jan",156,207,156.30000000000001,167.5]
[null,null,null,null,null,null,null,null,null,null,"Feb",158.1,213.9,157.9,166]
[null,null,null,null,null,null,null,null,null,null,"Mar",155.4,191.6,155.4,162.6]
[null,null,null,null,null,null,null,null,null,null,"Apr",149.69999999999999,249.9,150.5,168.1]
[null,null,null,null,null,null,null,null,null,null,"May",147.1,196.1,147,165.5]
[null,null,null,null,null,null,null,null,null,null,"Jun",133.5,237.3,133.30000000000001,150.69999999999999]
[null,null,null,null,null,null,null,null,null,null,"Jul",136.1,182.1,135.6,147.80000000000001]
[null,null,null,null,null,null,null,null,null,null,"Aug",141.69999999999999,364.5,142,160.30000000000001]
[null,null,null,null,null,null,null,null,null,null,"Sep",142.5,337.2,141.5,153.6]
[null,null,null,null,null,null,null,null,null,null,"Oct",146.5,330.9,146,165.9]
[null,null,null,null,null,null,null,null,null,null,"Nov",150.1,465.6,150.5,165.2]
[null,null,null,null,null,null,null,null,null,null,"Dec",134.9,226.7,135.30000000000001,159.4]
[null,null,null,null,null,null,null,null,null,null,"Annual",{"$f":"AVERAGE(L22:L33)","v":145.96666666666667},{"$f":"MAX(M22:M33)","v":465.6},{"$f":"AVERAGE(N22:N33)","v":145.94166666666666},{"$f":"MAX(O22:O33)","v":168.1}]
[]
[null,null,null,null,null,null,null,null,null,{"$f":"+A6","v":2022},"mg/Nm3","Monthly 1/2 hourly mean","Monthly 1/2 hourly maximum","Monthly daily mean","Monthly daily maximum"]
[null,null,null,null,null,null,null,null,null,"A3","Jan",154.9,221.2,155.69999999999999,166.9]
[null,null,null,null,null,null,null,null,null,null,"Feb",146.6,281.2,147.30000000000001,165.8]
[null,null,null,null,null,null,null,null,null,null,"Mar",151.19999999999999,176.1,0,0]
[null,null,null,null,null,null,null,null,null,null,"Apr",141,239.2,141,164.7]
[null,null,null,null,null,null,null,null,null,null,"May",138.6,197.6,138.6,162]
[null,null,null,null,null,null,null,null,null,null,"Jun",117.9,172.3,117.8,136.9]
[null,null,null,null,null,null,null,null,null,null,"Jul",113.1,203.2,113.1,127.7]
[null,null,null,null,null,null,null,null,null,null,"Aug",114.1,177.5,114.6,130.9]
[null,null,null,null,null,null,null,null,null,null,"Sep",126.2,195,125.8,155.6]
[null,null,null,null,null,null,null,null,null,null,"Oct",132.19999999999999,254.6,132.30000000000001,164.8]
[null,null,null,null,null,null,null,null,null,null,"Nov",132.4,326.39999999999998,132.19999999999999,154.69999999999999]
["Comments :",null,null,null,null,null,null,null,null,null,"Dec",110.4,185.9,109.5,127]
["No comments to add",null,null,null,null,null,null,null,null,null,"Annual",{"$f":"AVERAGE(L37:L48)","v":131.55000000000004},{"$f":"MAX(M37:M48)","v":326.39999999999998},{"$f":"AVERAGE(N37:N48)","v":118.99166666666667},{"$f":"MAX(O37:O48)","v":166.9}]
[]
[null,null,null,null,null,null,null,null,null,{"$f":"+A6","v":2022},"mg/Nm3","Monthly 1/2 hourly mean","Monthly 1/2 hourly maximum","Monthly daily mean","Monthly daily maximum"]
[null,null,null,null,null,null,null,null,null,"A4","Jan"]
[null,null,null,null,null,null,null,null,null,null,"Feb"]
[null,null,null,null,null,null,null,null,null,null,"Mar"]
[null,null,null,null,null,null,null,null,null,null,"Apr"]
[null,null,null,null,null,null,null,null,null,null,"May"]
[null,null,null,null,null,null,null,null,null,null,"Jun"]
[null,null,null,null,null,null,null,null,null,null,"Jul"]
[null,null,null,null,null,null,null,null,null,null,"Aug"]
[null,null,null,null,null,null,null,null,null,null,"Sep"]
[null,null,null,null,null,null,null,null,null,null,"Oct"]
[null,null,null,null,null,null,null,null,null,null,"Nov"]
[null,null,null,null,null,null,null,null,null,null,"Dec"]
[null,null,null,null,null,null,null,null,null,null,"Annual",{"$f":"AVERAGE(L52:L63)","v":{"$error":"#DIV/0!"}},{"$f":"MAX(M52:M63)","v":0},{"$f":"AVERAGE(N52:N63)","v":{"$error":"#DIV/0!"}},{"$f":"MAX(O52:O63)","v":0}]
[]
[null,null,null,null,null,null,null,null,null,{"$f":"+A6","v":2022},"mg/Nm3","Monthly 1/2 hourly mean","Monthly 1/2 hourly maximum","Monthly daily mean","Monthly daily maximum"]
[null,null,null,null,null,null,null,null,null,"A5","Jan"]
[null,null,null,null,null,null,null,null,null,null,"Feb"]
[null,null,null,null,null,null,null,null,null,null,"Mar"]
[null,null,null,null,null,null,null,null,null,null,"Apr"]
[null,null,null,null,null,null,null,null,null,null,"May"]
[null,null,null,null,null,null,null,null,null,null,"Jun"]
[null,null,null,null,null,null,null,null,null,null,"Jul"]
[null,null,null,null,null,null,null,null,null,null,"Aug"]
[null,null,null,null,null,null,null,null,null,null,"Sep"]
[null,null,null,null,null,null,null,null,null,null,"Oct"]
[null,null,null,null,null,null,null,null,null,null,"Nov"]
[null,null,null,null,null,null,null,null,null,null,"Dec"]
[null,null,null,null,null,null,null,null,null,null,"Annual",{"$f":"AVERAGE(L67:L78)","v":{"$error":"#DIV/0!"}},{"$f":"MAX(M67:M78)","v":0},{"$f":"AVERAGE(N67:N78)","v":{"$error":"#DIV/0!"}},{"$f":"MAX(O67:O78)","v":0}]

{"sheet":"TOC","index":18,"n_rows":79,"n_cols":17,"rows_kept":79,"cut":false,"hidden":false,"merged":[[3,16,7,18],[9,16,11,18],[12,16,15,18],[66,9,78,9],[4,1,4,3],[4,4,4,6],[4,9,4,14],[6,9,18,9],[21,9,33,9],[36,9,48,9],[47,0,47,6],[48,0,51,6],[51,9,63,9]]}
[{"$f":"+'Cover Page'!$B$29","v":"Annual Performance Report 2022"},null,null,null,{"$f":"+'Cover Page'!$B$33","v":"Kent Enviropower Limited"}]
[]
["Monitoring of Total organic carbon emissions",null,null,"Whole Installation",null,null,"See  Notes in Cell Q3",null,null,{"$f":"+A3","v":"Monitoring of Total organic carbon emissions"},null,null,null,"Per Combustion Line",null,null,"Notes:"]
[null,null,null,null,null,null,null,null,null,null,null,null,null,null,null,null,"User to add logic to complete Whole installation, Table A5:G18. From the data in Per Combustion Line, Table J6:O79, subject to No. of lines installed"]
["mg/Nm3","1/2 Hourly Reference Periods",null,null,"Daily Reference Periods"]
[{"$f":"+'Cover Page'!C39","v":2022},"1/2 hourly TOC ELV","Monthly 1/2 hourly mean","Highest 1/2 hourly maximum","Daily TOC ELV","Monthly daily mean","Highest daily maximum",null,null,{"$f":"+A6","v":2022},"mg/Nm3","Monthly 1/2 hourly mean","Monthly 1/2 hourly maximum","Monthly daily mean","Monthly daily maximum"]
["Jan",10,0.4,176.9,10,0.4,4,null,null,"A1","Jan",0.3,11.7,0.3,0.7]
["Feb",10,0.33,23.7,10,0.3,0.7,null,null,null,"Feb",0.4,23.7,0.3,0.6]
["Mar",10,0.3,4.5,10,0.16,0.6,null,null,null,"Mar",0.3,4.5,0.3,0.6,null,"Whole Installation table A5:G18:"]
["Apr",10,0.4,18,10,0.4,0.9,null,null,null,"Apr",0.4,11.3,0.4,0.9,null,"Mean: for 1/2 hourly and daily periods calculate mean of values across all operational combustion lines for the month"]
["May",10,0.36,26,10,0.36,1,null,null,null,"May",0.4,26,0.4,1]
["Jun",10,0.4,42.7,10,0.4,1.3,null,null,null,"Jun",0.5,42.7,0.5,1.3]
["Jul",10,0.46,62.5,10,0.46,1.8,null,null,null,"Jul",0.6,55.1,0.6,1.7,null,"Maximum: for 1/2 hourly and daily periods use the highest value across all operational combustion lines for the month"]
["Aug",10,0.43,21.7,10,0.43,1.4,null,null,null,"Aug",0.5,17,0.5,1.1000000000000001]
["Sep",10,0.43,65.5,10,0.43,1.7,null,null,null,"Sep",0.5,65.5,0.5,1.7]
["Oct",10,0.76,1292.9000000000001,10,0.4,1.5,null,null,null,"Oct",1.5,1292.9000000000001,0.4,1.5]
["Nov",10,0.3,27.3,10,0.3,0.8,null,null,null,"Nov",0.3,10.199999999999999,0.3,0.5]
["Dec",10,0.3,37.9,10,0.33,1.3,null,null,null,"Dec",0.3,37.9,0.4,1.3]
[null,null,null,null,null,null,null,null,null,null,"Annual",{"$f":"AVERAGE(L7:L18)","v":0.5},{"$f":"MAX(M7:M18)","v":1292.9000000000001},{"$f":"AVERAGE(N7:N18)","v":0.40833333333333338},{"$f":"MAX(O7:O18)","v":1.7}]
[]
[null,null,null,null,null,null,null,null,null,{"$f":"+A6","v":2022},"mg/Nm3","Monthly 1/2 hourly mean","Monthly 1/2 hourly maximum","Monthly daily mean","Monthly daily maximum"]
[null,null,null,null,null,null,null,null,null,"A2","Jan",0.2,9,0.2,0.5]
[null,null,null,null,null,null,null,null,null,null,"Feb",0.2,6.8,0.2,0.4]
[null,null,null,null,null,null,null,null,null,null,"Mar",0.2,2.7,0.2,0.5]
[null,null,null,null,null,null,null,null,null,null,"Apr",0.3,18,0.3,0.7]
[null,null,null,null,null,null,null,null,null,null,"May",0.3,10.5,0.3,0.6]
[null,null,null,null,null,null,null,null,null,null,"Jun",0.3,10.4,0.3,0.6]
[null,null,null,null,null,null,null,null,null,null,"Jul",0.4,62.5,0.4,1.8]
[null,null,null,null,null,null,null,null,null,null,"Aug",0.4,21.7,0.4,1.4]
[null,null,null,null,null,null,null,null,null,null,"Sep",0.4,49.8,0.4,1.4]
[null,null,null,null,null,null,null,null,null,null,"Oct",0.4,26.4,0.4,1.2]
[null,null,null,null,null,null,null,null,null,null,"Nov",0.2,27.3,0.2,0.8]
[null,null,null,null,null,null,null,null,null,null,"Dec",0.2,20,0.2,0.6]
[null,null,null,null,null,null,null,null,null,null,"Annual",{"$f":"AVERAGE(L22:L33)","v":0.29166666666666669},{"$f":"MAX(M22:M33)","v":62.5},{"$f":"AVERAGE(N22:N33)","v":0.29166666666666669},{"$f":"MAX(O22:O33)","v":1.8}]
[]
[null,null,null,null,null,null,null,null,null,{"$f":"+A6","v":2022},"mg/Nm3","Monthly 1/2 hourly mean","Monthly 1/2 hourly maximum","Monthly daily mean","Monthly daily maximum"]
[null,null,null,null,null,null,null,null,null,"A3","Jan",0.7,176.9,0.7,4]
[null,null,null,null,null,null,null,null,null,null,"Feb",0.4,6.5,0.4,0.7]
[null,null,null,null,null,null,null,null,null,null,"Mar",0.4,2,0,0]
[null,null,null,null,null,null,null,null,null,null,"Apr",0.5,6.8,0.5,0.7]
[null,null,null,null,null,null,null,null,null,null,"May",0.4,21.1,0.4,0.9]
[null,null,null,null,null,null,null,null,null,null,"Jun",0.4,28.6,0.4,1]
[null,null,null,null,null,null,null,null,null,null,"Jul",0.4,8.3000000000000007,0.4,0.8]
[null,null,null,null,null,null,null,null,null,null,"Aug",0.4,6.7,0.4,0.6]
[null,null,null,null,null,null,null,null,null,null,"Sep",0.4,6.8,0.4,0.7]
[null,null,null,null,null,null,null,null,null,null,"Oct",0.4,10.5,0.4,0.5]
[null,null,null,null,null,null,null,null,null,null,"Nov",0.4,7.7,0.4,0.6]
["Comments :",null,null,null,null,null,null,null,null,null,"Dec",0.4,2.5,0.4,0.7]
["No comments to add",null,null,null,null,null,null,null,null,null,"Annual",{"$f":"AVERAGE(L37:L48)","v":0.43333333333333335},{"$f":"MAX(M37:M48)","v":176.9},{"$f":"AVERAGE(N37:N48)","v":0.39999999999999997},{"$f":"MAX(O37:O48)","v":4}]
[]
[null,null,null,null,null,null,null,null,null,{"$f":"+A6","v":2022},"mg/Nm3","Monthly 1/2 hourly mean","Monthly 1/2 hourly maximum","Monthly daily mean","Monthly daily maximum"]
[null,null,null,null,null,null,null,null,null,"A4","Jan"]
[null,null,null,null,null,null,null,null,null,null,"Feb"]
[null,null,null,null,null,null,null,null,null,null,"Mar"]
[null,null,null,null,null,null,null,null,null,null,"Apr"]
[null,null,null,null,null,null,null,null,null,null,"May"]
[null,null,null,null,null,null,null,null,null,null,"Jun"]
[null,null,null,null,null,null,null,null,null,null,"Jul"]
[null,null,null,null,null,null,null,null,null,null,"Aug"]
[null,null,null,null,null,null,null,null,null,null,"Sep"]
[null,null,null,null,null,null,null,null,null,null,"Oct"]
[null,null,null,null,null,null,null,null,null,null,"Nov"]
[null,null,null,null,null,null,null,null,null,null,"Dec"]
[null,null,null,null,null,null,null,null,null,null,"Annual",{"$f":"AVERAGE(L52:L63)","v":{"$error":"#DIV/0!"}},{"$f":"MAX(M52:M63)","v":0},{"$f":"AVERAGE(N52:N63)","v":{"$error":"#DIV/0!"}},{"$f":"MAX(O52:O63)","v":0}]
[]
[null,null,null,null,null,null,null,null,null,{"$f":"+A6","v":2022},"mg/Nm3","Monthly 1/2 hourly mean","Monthly 1/2 hourly maximum","Monthly daily mean","Monthly daily maximum"]
[null,null,null,null,null,null,null,null,null,"A5","Jan"]
[null,null,null,null,null,null,null,null,null,null,"Feb"]
[null,null,null,null,null,null,null,null,null,null,"Mar"]
[null,null,null,null,null,null,null,null,null,null,"Apr"]
[null,null,null,null,null,null,null,null,null,null,"May"]
[null,null,null,null,null,null,null,null,null,null,"Jun"]
[null,null,null,null,null,null,null,null,null,null,"Jul"]
[null,null,null,null,null,null,null,null,null,null,"Aug"]
[null,null,null,null,null,null,null,null,null,null,"Sep"]
[null,null,null,null,null,null,null,null,null,null,"Oct"]
[null,null,null,null,null,null,null,null,null,null,"Nov"]
[null,null,null,null,null,null,null,null,null,null,"Dec"]
[null,null,null,null,null,null,null,null,null,null,"Annual",{"$f":"AVERAGE(L67:L78)","v":{"$error":"#DIV/0!"}},{"$f":"MAX(M67:M78)","v":0},{"$f":"AVERAGE(N67:N78)","v":{"$error":"#DIV/0!"}},{"$f":"MAX(O67:O78)","v":0}]

{"sheet":"Particulates","index":19,"n_rows":79,"n_cols":17,"rows_kept":79,"cut":false,"hidden":false,"merged":[[3,16,7,18],[9,16,11,18],[12,16,15,18],[66,9,78,9],[4,1,4,3],[4,4,4,6],[4,9,4,14],[6,9,18,9],[21,9,33,9],[36,9,48,9],[47,0,47,6],[48,0,51,6],[51,9,63,9]]}
[{"$f":"+'Cover Page'!$B$29","v":"Annual Performance Report 2022"},null,null,null,{"$f":"+'Cover Page'!$B$33","v":"Kent Enviropower Limited"}]
[]
["Monitoring of Particulate matter emissions",null,null,"Whole Installation",null,null,"See  Notes in Cell Q3",null,null,{"$f":"+A3","v":"Monitoring of Particulate matter emissions"},null,null,null,"Per Combustion Line",null,null,"Notes:"]
[null,null,null,null,null,null,null,null,null,null,null,null,null,null,null,null,"User to add logic to complete Whole installation, Table A5:G18. From the data in Per Combustion Line, Table J6:O79, subject to No. of lines installed"]
["mg/Nm3","1/2 Hourly Reference Periods",null,null,"Daily Reference Periods"]
[{"$f":"+'Cover Page'!C39","v":2022},"1/2 hourly PM ELV","Monthly 1/2 hourly mean","Highest 1/2 hourly maximum","Daily PM ELV","Monthly daily mean","Highest daily maximum",null,null,{"$f":"+A6","v":2022},"mg/Nm3","Monthly 1/2 hourly mean","Monthly 1/2 hourly maximum","Monthly daily mean","Monthly daily maximum"]
["Jan",30,1.9,16.899999999999999,10,1.86,4.3,null,null,"A1","Jan",0.4,7,0.4,3.3]
["Feb",30,1.6,7.8,10,1.66,4.2,null,null,null,"Feb",0.5,7.3,0.6,2.2000000000000002]
["Mar",30,2.4300000000000002,6.6,10,1.2,3.6,null,null,null,"Mar",0.9,6.1,0.9,2.9,null,"Whole Installation table A5:G18:"]
["Apr",30,0.3,6.8,10,0.3,1.9,null,null,null,"Apr",0.3,6.8,0.3,1.9,null,"Mean: for 1/2 hourly and daily periods calculate mean of values across all operational combustion lines for the month"]
["May",30,0.36,7.2,10,0.4,2.7,null,null,null,"May",0.5,7.2,0.6,2.7]
["Jun",30,0.6,20.5,10,0.6,4.3,null,null,null,"Jun",0.9,20.5,0.9,4.3]
["Jul",30,0.63,4.3,10,0.6,3.3,null,null,null,"Jul",1.1000000000000001,4.3,1,3.3,null,"Maximum: for 1/2 hourly and daily periods use the highest value across all operational combustion lines for the month"]
["Aug",30,1,12,10,0.96,3,null,null,null,"Aug",1.1000000000000001,12,1,3]
["Sep",30,1.26,7.4,10,1.33,4.2,null,null,null,"Sep",2.2000000000000002,7.4,2.2999999999999998,3.6]
["Oct",30,1.03,6.6,10,1.03,2.8,null,null,null,"Oct",1.6,6.6,1.6,2.8]
["Nov",30,1.6,5.3,10,1.6,4.0999999999999996,null,null,null,"Nov",1.3,5.3,1.3,4.0999999999999996]
["Dec",30,2,7.9,10,2.0299999999999998,4.5999999999999996,null,null,null,"Dec",2.2999999999999998,7.9,2.2999999999999998,4.5999999999999996]
[null,null,null,null,null,null,null,null,null,null,"Annual",{"$f":"AVERAGE(L7:L18)","v":1.0916666666666668},{"$f":"MAX(M7:M18)","v":20.5},{"$f":"AVERAGE(N7:N18)","v":1.0999999999999999},{"$f":"MAX(O7:O18)","v":4.5999999999999996}]
[]
[null,null,null,null,null,null,null,null,null,{"$f":"+A6","v":2022},"mg/Nm3","Monthly 1/2 hourly mean","Monthly 1/2 hourly maximum","Monthly daily mean","Monthly daily maximum"]
[null,null,null,null,null,null,null,null,null,"A2","Jan",2.8,16.899999999999999,2.7,3.8]
[null,null,null,null,null,null,null,null,null,null,"Feb",1.8,7.8,1.9,4.0999999999999996]
[null,null,null,null,null,null,null,null,null,null,"Mar",2.7,6.6,2.7,3.6]
[null,null,null,null,null,null,null,null,null,null,"Apr",0.3,1.3,0.3,0.8]
[null,null,null,null,null,null,null,null,null,null,"May",0.2,1,0.2,0.3]
[null,null,null,null,null,null,null,null,null,null,"Jun",0.5,1.1000000000000001,0.5,0.8]
[null,null,null,null,null,null,null,null,null,null,"Jul",0.4,1.2,0.4,0.9]
[null,null,null,null,null,null,null,null,null,null,"Aug",1.4,3.8,1.4,2.8]
[null,null,null,null,null,null,null,null,null,null,"Sep",1,7.2,1.1000000000000001,4.2]
[null,null,null,null,null,null,null,null,null,null,"Oct",0.8,3.7,0.8,2.2999999999999998]
[null,null,null,null,null,null,null,null,null,null,"Nov",1.8,3.6,1.8,3.1]
[null,null,null,null,null,null,null,null,null,null,"Dec",1,3.7,1.1000000000000001,2.2000000000000002]
[null,null,null,null,null,null,null,null,null,null,"Annual",{"$f":"AVERAGE(L22:L33)","v":1.2250000000000003},{"$f":"MAX(M22:M33)","v":16.899999999999999},{"$f":"AVERAGE(N22:N33)","v":1.2416666666666669},{"$f":"MAX(O22:O33)","v":4.2}]
[]
[null,null,null,null,null,null,null,null,null,{"$f":"+A6","v":2022},"mg/Nm3","Monthly 1/2 hourly mean","Monthly 1/2 hourly maximum","Monthly daily mean","Monthly daily maximum"]
[null,null,null,null,null,null,null,null,null,"A3","Jan",2.5,14.2,2.5,4.3]
[null,null,null,null,null,null,null,null,null,null,"Feb",2.5,6.6,2.5,4.2]
[null,null,null,null,null,null,null,null,null,null,"Mar",3.7,4.4000000000000004,0,0]
[null,null,null,null,null,null,null,null,null,null,"Apr",0.3,2.5,0.3,0.5]
[null,null,null,null,null,null,null,null,null,null,"May",0.4,1.3,0.4,0.8]
[null,null,null,null,null,null,null,null,null,null,"Jun",0.4,1,0.4,0.7]
[null,null,null,null,null,null,null,null,null,null,"Jul",0.4,1.4,0.4,0.5]
[null,null,null,null,null,null,null,null,null,null,"Aug",0.5,2.2000000000000002,0.5,0.7]
[null,null,null,null,null,null,null,null,null,null,"Sep",0.6,1.3,0.6,0.7]
[null,null,null,null,null,null,null,null,null,null,"Oct",0.7,1.8,0.7,1.1000000000000001]
[null,null,null,null,null,null,null,null,null,null,"Nov",1.7,4,1.7,3]
["Comments :",null,null,null,null,null,null,null,null,null,"Dec",2.7,4.7,2.7,3.8]
["No comments to add",null,null,null,null,null,null,null,null,null,"Annual",{"$f":"AVERAGE(L37:L48)","v":1.3666666666666665},{"$f":"MAX(M37:M48)","v":14.2},{"$f":"AVERAGE(N37:N48)","v":1.0583333333333333},{"$f":"MAX(O37:O48)","v":4.3}]
[]
[null,null,null,null,null,null,null,null,null,{"$f":"+A6","v":2022},"mg/Nm3","Monthly 1/2 hourly mean","Monthly 1/2 hourly maximum","Monthly daily mean","Monthly daily maximum"]
[null,null,null,null,null,null,null,null,null,"A4","Jan"]
[null,null,null,null,null,null,null,null,null,null,"Feb"]
[null,null,null,null,null,null,null,null,null,null,"Mar"]
[null,null,null,null,null,null,null,null,null,null,"Apr"]
[null,null,null,null,null,null,null,null,null,null,"May"]
[null,null,null,null,null,null,null,null,null,null,"Jun"]
[null,null,null,null,null,null,null,null,null,null,"Jul"]
[null,null,null,null,null,null,null,null,null,null,"Aug"]
[null,null,null,null,null,null,null,null,null,null,"Sep"]
[null,null,null,null,null,null,null,null,null,null,"Oct"]
[null,null,null,null,null,null,null,null,null,null,"Nov"]
[null,null,null,null,null,null,null,null,null,null,"Dec"]
[null,null,null,null,null,null,null,null,null,null,"Annual",{"$f":"AVERAGE(L52:L63)","v":{"$error":"#DIV/0!"}},{"$f":"MAX(M52:M63)","v":0},{"$f":"AVERAGE(N52:N63)","v":{"$error":"#DIV/0!"}},{"$f":"MAX(O52:O63)","v":0}]
[]
[null,null,null,null,null,null,null,null,null,{"$f":"+A6","v":2022},"mg/Nm3","Monthly 1/2 hourly mean","Monthly 1/2 hourly maximum","Monthly daily mean","Monthly daily maximum"]
[null,null,null,null,null,null,null,null,null,"A5","Jan"]
[null,null,null,null,null,null,null,null,null,null,"Feb"]
[null,null,null,null,null,null,null,null,null,null,"Mar"]
[null,null,null,null,null,null,null,null,null,null,"Apr"]
[null,null,null,null,null,null,null,null,null,null,"May"]
[null,null,null,null,null,null,null,null,null,null,"Jun"]
[null,null,null,null,null,null,null,null,null,null,"Jul"]
[null,null,null,null,null,null,null,null,null,null,"Aug"]
[null,null,null,null,null,null,null,null,null,null,"Sep"]
[null,null,null,null,null,null,null,null,null,null,"Oct"]
[null,null,null,null,null,null,null,null,null,null,"Nov"]
[null,null,null,null,null,null,null,null,null,null,"Dec"]
[null,null,null,null,null,null,null,null,null,null,"Annual",{"$f":"AVERAGE(L67:L78)","v":{"$error":"#DIV/0!"}},{"$f":"MAX(M67:M78)","v":0},{"$f":"AVERAGE(N67:N78)","v":{"$error":"#DIV/0!"}},{"$f":"MAX(O67:O78)","v":0}]

{"sheet":"CO 95% 10 min","index":20,"n_rows":79,"n_cols":19,"rows_kept":79,"cut":false,"hidden":false,"merged":[[3,18,7,20],[9,18,11,20],[12,18,15,20],[66,10,78,10],[4,1,4,4],[4,5,4,7],[4,10,4,16],[6,10,18,10],[21,10,33,10],[36,10,48,10],[47,0,47,7],[48,0,51,7],[51,10,63,10]]}
[{"$f":"+'Cover Page'!$B$29","v":"Annual Performance Report 2022"},null,null,null,{"$f":"+'Cover Page'!$B$33","v":"Kent Enviropower Limited"}]
[]
["Monitoring of Carbon Monoxide (10-minute avg)",null,null,null,"Whole Installation",null,null,"See  Notes in Cell S3",null,{"$f":"+A3","v":"Monitoring of Carbon Monoxide (10-minute avg)"},null,null,null,null,"Per Combustion Line",null,"Notes:",null,"Notes:"]
[null,null,null,null,null,null,null,null,null,null,null,null,null,null,null,null,null,null,"User to add logic to complete Whole installation, Table A5:H18. From the data in Per Combustion Line, Table K6:Q79, subject to No. of lines installed"]
["mg/Nm3","10-minute Reference Periods",null,null,null,"Daily Reference Periods"]
[{"$f":"+'Cover Page'!C39","v":2022},"95%ile 10-min avg CO ELV","95%ile 10-min avg maximum","Monthly CO 10-min avg mean","10-min avg maximum","Daily CO ELV","Monthly daily mean","Highest daily maximum",null,null,{"$f":"+A6","v":2022},"mg/Nm3","95%ile 10-min avg maximum","Monthly CO 10-min avg mean","10-min avg maximum","Monthly daily mean","Monthly daily maximum"]
["Jan",150,28.5,4.3,846,50,4.0999999999999996,13.7,null,null,"A1","Jan",10.8,3.5,794.1,3.4,10.5]
["Feb",{"$f":"+B7","v":150},15.7,3.66,1235.8,{"$f":"+F7","v":50},3.3,12.2,null,null,null,"Feb",15.7,5.4,1235.8,4.3,12.2]
["Mar",{"$f":"+B8","v":150},14.8,1.96,406,{"$f":"+F8","v":50},0.9,7.3,null,null,null,"Mar",4.5,2.1,406,1.7,7.3,null,"Whole Installation table A5:H18:"]
["Apr",150,26.4,4.0599999999999996,1089.9000000000001,50,4.03,24.1,null,null,null,"Apr",20,5.2,1089.9000000000001,5.2,24.1,null,"Mean: for 10-min and daily periods use average of all operational combustion lines."]
["May",150,25.2,4.5,10394.4,50,3.66,34.9,null,null,null,"May",8.6,6.6,10394.4,4.3,34.9]
["Jun",150,41.6,5.4,3605.8,50,5.4,28.4,null,null,null,"Jun",41.6,8.4,3605.8,8.4,28.4]
["Jul",150,31.6,5.8,4239.7,50,5.86,35.799999999999997,null,null,null,"Jul",31.6,8.4,4239.7,8.8000000000000007,35.799999999999997,null,"Maximum: for 10-min and daily periods use the highest of all operational combustion lines in any month."]
["Aug",150,44.5,5.76,859.1,50,5.53,18,null,null,null,"Aug",26.8,6.1,859.1,5.6,17.600000000000001]
["Sep",150,28.6,5.33,2764.4,50,5.26,23.7,null,null,null,"Sep",9,6.2,2764.4,6.1,23.7]
["Oct",150,38.299999999999997,10.26,24734.1,50,5.8,31.2,null,null,null,"Oct",5.6,17.8,24734.1,4.3,31.2]
["Nov",150,46.3,6.1,1214.4000000000001,50,6.03,19.7,null,null,null,"Nov",5.4,3.3,1160,3.3,10.199999999999999]
["Dec",150,29.1,4.13,1594.9,50,3.93,22.8,null,null,null,"Dec",2.2000000000000002,2.5,1594.9,2.5,22.8]
[null,null,null,null,null,null,null,null,null,null,null,"Annual",{"$f":"AVERAGE(M7:M18)","v":15.15},null,{"$f":"MAX(O7:O18)","v":24734.1},{"$f":"AVERAGE(P7:P18)","v":4.8249999999999993},{"$f":"MAX(Q7:Q18)","v":35.799999999999997}]
[]
[null,null,null,null,null,null,null,null,null,null,{"$f":"+A6","v":2022},"mg/Nm3","95%ile 10-min avg maximum","Monthly CO 10-min avg mean","10-min avg maximum","Monthly daily mean","Monthly daily maximum"]
[null,null,null,null,null,null,null,null,null,null,"A2","Jan",4.5,2.8,787.7,2.8,12.1]
[null,null,null,null,null,null,null,null,null,null,null,"Feb",5.3,2.6,567.5,2.7,8.1999999999999993]
[null,null,null,null,null,null,null,null,null,null,null,"Mar",1.8,1,137.69999999999999,1,3]
[null,null,null,null,null,null,null,null,null,null,null,"Apr",3.6,1.6,257.10000000000002,1.6,3.8]
[null,null,null,null,null,null,null,null,null,null,null,"May",0.8,1.3,330.6,1.1000000000000001,4.4000000000000004]
[null,null,null,null,null,null,null,null,null,null,null,"Jun",4.4000000000000004,2.2999999999999998,575.9,2.2999999999999998,11.6]
[null,null,null,null,null,null,null,null,null,null,null,"Jul",5.9,3.5,1556.4,3.3,21.8]
[null,null,null,null,null,null,null,null,null,null,null,"Aug",3.9,2.5,466.6,2.4,14.7]
[null,null,null,null,null,null,null,null,null,null,null,"Sep",6.7,3.6,1540.3,3.6,18.100000000000001]
[null,null,null,null,null,null,null,null,null,null,null,"Oct",26.4,5.9,930.1,6,16.399999999999999]
[null,null,null,null,null,null,null,null,null,null,null,"Nov",33,6.9,1214.4000000000001,7,19.7]
[null,null,null,null,null,null,null,null,null,null,null,"Dec",15.6,4.5,516.20000000000005,4.2,10]
[null,null,null,null,null,null,null,null,null,null,null,"Annual",{"$f":"AVERAGE(M22:M33)","v":9.3249999999999993},null,{"$f":"MAX(O22:O33)","v":1556.4},{"$f":"AVERAGE(P22:P33)","v":3.1666666666666665},{"$f":"MAX(Q22:Q33)","v":21.8}]
[]
[null,null,null,null,null,null,null,null,null,null,{"$f":"+A6","v":2022},"mg/Nm3","95%ile 10-min avg maximum","Monthly CO 10-min avg mean","10-min avg maximum","Monthly daily mean","Monthly daily maximum"]
[null,null,null,null,null,null,null,null,null,null,"A3","Jan",28.5,6.6,846,6.1,13.7]
[null,null,null,null,null,null,null,null,null,null,null,"Feb",9.6999999999999993,3,458.4,2.9,10.199999999999999]
[null,null,null,null,null,null,null,null,null,null,null,"Mar",14.8,2.8,163.9,0,0]
[null,null,null,null,null,null,null,null,null,null,null,"Apr",26.4,5.4,583.29999999999995,5.3,18.2]
[null,null,null,null,null,null,null,null,null,null,null,"May",25.2,5.6,883.5,5.6,14.8]
[null,null,null,null,null,null,null,null,null,null,null,"Jun",28.7,5.5,515.20000000000005,5.5,13]
[null,null,null,null,null,null,null,null,null,null,null,"Jul",27,5.5,691.9,5.5,13]
[null,null,null,null,null,null,null,null,null,null,null,"Aug",44.5,8.6999999999999993,545.29999999999995,8.6,18]
[null,null,null,null,null,null,null,null,null,null,null,"Sep",28.6,6.2,522.70000000000005,6.1,14]
[null,null,null,null,null,null,null,null,null,null,null,"Oct",38.299999999999997,7.1,639,7.1,13.6]
[null,null,null,null,null,null,null,null,null,null,null,"Nov",46.3,8.1,560,7.8,13.2]
["Comments :",null,null,null,null,null,null,null,null,null,null,"Dec",29.1,5.4,609.9,5.0999999999999996,18.100000000000001]
["Environment Agency explanatory note: The 10-minute average ELV is based on the “95th percentile”. In this case this means that 95% of the 10 minute averages in the relevant 24-hour period (i.e. 137) must be below 150 mg/Nm3, and 5% (i.e. 7) are allowed to be any value above 150 mg/Nm3. Whilst we expect operators to minimise CO emissions at all times, it is perfectly acceptable for the value of the maximum 10-minute average to be above 150 mg/Nm3, provided the 95th percentile ELV has been met for that period. ",null,null,null,null,null,null,null,null,null,null,"Annual",{"$f":"AVERAGE(M37:M48)","v":28.925000000000001},null,{"$f":"MAX(O37:O48)","v":883.5},{"$f":"AVERAGE(P37:P48)","v":5.4666666666666659},{"$f":"MAX(Q37:Q48)","v":18.2}]
[]
[null,null,null,null,null,null,null,null,null,null,{"$f":"+A6","v":2022},"mg/Nm3","95%ile 10-min avg maximum","Monthly CO 10-min avg mean","10-min avg maximum","Monthly daily mean","Monthly daily maximum"]
[null,null,null,null,null,null,null,null,null,null,"A4","Jan"]
[null,null,null,null,null,null,null,null,null,null,null,"Feb"]
[null,null,null,null,null,null,null,null,null,null,null,"Mar"]
[null,null,null,null,null,null,null,null,null,null,null,"Apr"]
[null,null,null,null,null,null,null,null,null,null,null,"May"]
[null,null,null,null,null,null,null,null,null,null,null,"Jun"]
[null,null,null,null,null,null,null,null,null,null,null,"Jul"]
[null,null,null,null,null,null,null,null,null,null,null,"Aug"]
[null,null,null,null,null,null,null,null,null,null,null,"Sep"]
[null,null,null,null,null,null,null,null,null,null,null,"Oct"]
[null,null,null,null,null,null,null,null,null,null,null,"Nov"]
[null,null,null,null,null,null,null,null,null,null,null,"Dec"]
[null,null,null,null,null,null,null,null,null,null,null,"Annual",{"$f":"AVERAGE(M52:M63)","v":{"$error":"#DIV/0!"}},null,{"$f":"MAX(O52:O63)","v":0},{"$f":"AVERAGE(P52:P63)","v":{"$error":"#DIV/0!"}},{"$f":"MAX(Q52:Q63)","v":0}]
[]
[null,null,null,null,null,null,null,null,null,null,{"$f":"+A6","v":2022},"mg/Nm3","95%ile 10-min avg maximum","Monthly CO 10-min avg mean","10-min avg maximum","Monthly daily mean","Monthly daily maximum"]
[null,null,null,null,null,null,null,null,null,null,"A5","Jan"]
[null,null,null,null,null,null,null,null,null,null,null,"Feb"]
[null,null,null,null,null,null,null,null,null,null,null,"Mar"]
[null,null,null,null,null,null,null,null,null,null,null,"Apr"]
[null,null,null,null,null,null,null,null,null,null,null,"May"]
[null,null,null,null,null,null,null,null,null,null,null,"Jun"]
[null,null,null,null,null,null,null,null,null,null,null,"Jul"]
[null,null,null,null,null,null,null,null,null,null,null,"Aug"]
[null,null,null,null,null,null,null,null,null,null,null,"Sep"]
[null,null,null,null,null,null,null,null,null,null,null,"Oct"]
[null,null,null,null,null,null,null,null,null,null,null,"Nov"]
[null,null,null,null,null,null,null,null,null,null,null,"Dec"]
[null,null,null,null,null,null,null,null,null,null,null,"Annual",{"$f":"AVERAGE(M67:M78)","v":{"$error":"#DIV/0!"}},null,{"$f":"MAX(O67:O78)","v":0},{"$f":"AVERAGE(P67:P78)","v":{"$error":"#DIV/0!"}},{"$f":"MAX(Q67:Q78)","v":0}]

{"sheet":"NH3","index":21,"n_rows":79,"n_cols":17,"rows_kept":79,"cut":false,"hidden":false,"merged":[[3,16,7,18],[9,16,11,18],[12,16,15,18],[66,9,78,9],[4,1,4,3],[4,4,4,6],[4,9,4,14],[6,9,18,9],[21,9,33,9],[36,9,48,9],[47,0,47,6],[48,0,51,6],[51,9,63,9]]}
[{"$f":"+'Cover Page'!$B$29","v":"Annual Performance Report 2022"},null,null,null,{"$f":"+'Cover Page'!$B$33","v":"Kent Enviropower Limited"}]
[]
["Monitoring of Ammnonia emissions ",null,null,"Whole Installation",null,null,"See  Notes in Cell Q3",null,null,{"$f":"+A3","v":"Monitoring of Ammnonia emissions "},null,null,null,"Per Combustion Line",null,null,"Notes:"]
[null,null,null,null,null,null,null,null,null,null,null,null,null,null,null,null,"User to add logic to complete Whole installation, Table A5:G18. From the data in Per Combustion Line, Table J6:O79, subject to No. of lines installed"]
["mg/Nm3","1/2 Hourly Reference Periods",null,null,"Daily Reference Periods"]
[{"$f":"+'Cover Page'!C39","v":2022},"1/2 hourly NH3 ELV","Monthly 1/2 hourly mean","Highest 1/2 hourly maximum","Daily NH3 ELV","Monthly daily mean","Highest daily maximum",null,null,{"$f":"+A6","v":2022},"mg/Nm3","Monthly 1/2 hourly mean","Monthly 1/2 hourly maximum","Monthly daily mean","Monthly daily maximum"]
["Jan","N/A",0.13,8.3000000000000007,10,0.13,2,null,null,"A1","Jan",0.1,3.6,0.1,2]
["Feb",{"$f":"+B7","v":"N/A"},0.13,3.8,{"$f":"+E7","v":10},0.13,0.4,null,null,null,"Feb",0.1,2.9,0.1,0.2]
["Mar",{"$f":"+B8","v":"N/A"},0.13,2.5,{"$f":"+E8","v":10},0.06,0.2,null,null,null,"Mar",0.1,2.5,0.1,0.2,null,"Whole Installation table A5:G18:"]
["Apr","N/A",0.26,59.4,10,0.2,0.7,null,null,null,"Apr",0.2,5,0.2,0.6,null,"Mean: for 1/2 hourly and daily periods calculate mean of values across all operational combustion lines for the month"]
["May","N/A",0.2,17.2,10,0.16,0.6,null,null,null,"May",0.2,17.2,0.2,0.3]
["Jun","N/A",0.23,23.6,10,0.23,1.2,null,null,null,"Jun",0.3,23.6,0.3,1.2]
["Jul","N/A",0.23,17.7,10,0.23,0.9,null,null,null,"Jul",0.3,17.7,0.3,0.9,null,"Maximum: for 1/2 hourly and daily periods use the highest value across all operational combustion lines for the month"]
["Aug","N/A",0.26,5.7,10,0.26,0.9,null,null,null,"Aug",0.2,5.0999999999999996,0.2,0.6]
["Sep","N/A",0.23,30.2,10,0.23,1,null,null,null,"Sep",0.2,30.2,0.2,1]
["Oct","N/A",0.33,149.19999999999999,10,0.26,1.3,null,null,null,"Oct",0.4,149.19999999999999,0.2,1.3]
["Nov","N/A",0.23,5.3,10,0.23,0.7,null,null,null,"Nov",0.1,3.5,0.1,0.2]
["Dec","N/A",0.13,10.9,10,0.13,0.9,null,null,null,"Dec",0.1,10.9,0.1,0.6]
[null,null,null,null,null,null,null,null,null,null,"Annual",{"$f":"AVERAGE(L7:L18)","v":0.19166666666666668},{"$f":"MAX(M7:M18)","v":149.19999999999999},{"$f":"AVERAGE(N7:N18)","v":0.17500000000000002},{"$f":"MAX(O7:O18)","v":2}]
[]
[null,null,null,null,null,null,null,null,null,{"$f":"+A6","v":2022},"mg/Nm3","Monthly 1/2 hourly mean","Monthly 1/2 hourly maximum","Monthly daily mean","Monthly daily maximum"]
[null,null,null,null,null,null,null,null,null,"A2","Jan",0.1,3.4,0.1,0.2]
[null,null,null,null,null,null,null,null,null,null,"Feb",0.1,2,0.1,0.2]
[null,null,null,null,null,null,null,null,null,null,"Mar",0.1,1.3,0.1,0.2]
[null,null,null,null,null,null,null,null,null,null,"Apr",0.3,59.4,0.1,0.6]
[null,null,null,null,null,null,null,null,null,null,"May",0.1,2,0,0.1]
[null,null,null,null,null,null,null,null,null,null,"Jun",0.1,3.8,0.1,0.2]
[null,null,null,null,null,null,null,null,null,null,"Jul",0.1,5.7,0.1,0.3]
[null,null,null,null,null,null,null,null,null,null,"Aug",0.1,4.5999999999999996,0.1,0.5]
[null,null,null,null,null,null,null,null,null,null,"Sep",0.1,3.4,0.1,0.2]
[null,null,null,null,null,null,null,null,null,null,"Oct",0.2,7.5,0.2,0.4]
[null,null,null,null,null,null,null,null,null,null,"Nov",0.2,4.9000000000000004,0.2,0.4]
[null,null,null,null,null,null,null,null,null,null,"Dec",0.1,5.5,0.1,0.4]
[null,null,null,null,null,null,null,null,null,null,"Annual",{"$f":"AVERAGE(L22:L33)","v":0.13333333333333333},{"$f":"MAX(M22:M33)","v":59.4},{"$f":"AVERAGE(N22:N33)","v":0.10833333333333334},{"$f":"MAX(O22:O33)","v":0.6}]
[]
[null,null,null,null,null,null,null,null,null,{"$f":"+A6","v":2022},"mg/Nm3","Monthly 1/2 hourly mean","Monthly 1/2 hourly maximum","Monthly daily mean","Monthly daily maximum"]
[null,null,null,null,null,null,null,null,null,"A3","Jan",0.2,8.3000000000000007,0.2,0.5]
[null,null,null,null,null,null,null,null,null,null,"Feb",0.2,3.8,0.2,0.4]
[null,null,null,null,null,null,null,null,null,null,"Mar",0.2,1.4,0,0]
[null,null,null,null,null,null,null,null,null,null,"Apr",0.3,6.5,0.3,0.7]
[null,null,null,null,null,null,null,null,null,null,"May",0.3,6.7,0.3,0.6]
[null,null,null,null,null,null,null,null,null,null,"Jun",0.3,8.4,0.3,0.7]
[null,null,null,null,null,null,null,null,null,null,"Jul",0.3,6.4,0.3,0.6]
[null,null,null,null,null,null,null,null,null,null,"Aug",0.5,5.7,0.5,0.9]
[null,null,null,null,null,null,null,null,null,null,"Sep",0.4,4.8,0.4,0.7]
[null,null,null,null,null,null,null,null,null,null,"Oct",0.4,8.6,0.4,0.6]
[null,null,null,null,null,null,null,null,null,null,"Nov",0.4,5.3,0.4,0.7]
["Comments :",null,null,null,null,null,null,null,null,null,"Dec",0.2,4,0.2,0.9]
["An indicated ELV value of zero in the table above means that no ammonia limit is set in the permit.  ",null,null,null,null,null,null,null,null,null,"Annual",{"$f":"AVERAGE(L37:L48)","v":0.30833333333333335},{"$f":"MAX(M37:M48)","v":8.6},{"$f":"AVERAGE(N37:N48)","v":0.29166666666666669},{"$f":"MAX(O37:O48)","v":0.9}]
[]
[null,null,null,null,null,null,null,null,null,{"$f":"+A6","v":2022},"mg/Nm3","Monthly 1/2 hourly mean","Monthly 1/2 hourly maximum","Monthly daily mean","Monthly daily maximum"]
[null,null,null,null,null,null,null,null,null,"A4","Jan"]
[null,null,null,null,null,null,null,null,null,null,"Feb"]
[null,null,null,null,null,null,null,null,null,null,"Mar"]
[null,null,null,null,null,null,null,null,null,null,"Apr"]
[null,null,null,null,null,null,null,null,null,null,"May"]
[null,null,null,null,null,null,null,null,null,null,"Jun"]
[null,null,null,null,null,null,null,null,null,null,"Jul"]
[null,null,null,null,null,null,null,null,null,null,"Aug"]
[null,null,null,null,null,null,null,null,null,null,"Sep"]
[null,null,null,null,null,null,null,null,null,null,"Oct"]
[null,null,null,null,null,null,null,null,null,null,"Nov"]
[null,null,null,null,null,null,null,null,null,null,"Dec"]
[null,null,null,null,null,null,null,null,null,null,"Annual",{"$f":"AVERAGE(L52:L63)","v":{"$error":"#DIV/0!"}},{"$f":"MAX(M52:M63)","v":0},{"$f":"AVERAGE(N52:N63)","v":{"$error":"#DIV/0!"}},{"$f":"MAX(O52:O63)","v":0}]
[]
[null,null,null,null,null,null,null,null,null,{"$f":"+A6","v":2022},"mg/Nm3","Monthly 1/2 hourly mean","Monthly 1/2 hourly maximum","Monthly daily mean","Monthly daily maximum"]
[null,null,null,null,null,null,null,null,null,"A5","Jan"]
[null,null,null,null,null,null,null,null,null,null,"Feb"]
[null,null,null,null,null,null,null,null,null,null,"Mar"]
[null,null,null,null,null,null,null,null,null,null,"Apr"]
[null,null,null,null,null,null,null,null,null,null,"May"]
[null,null,null,null,null,null,null,null,null,null,"Jun"]
[null,null,null,null,null,null,null,null,null,null,"Jul"]
[null,null,null,null,null,null,null,null,null,null,"Aug"]
[null,null,null,null,null,null,null,null,null,null,"Sep"]
[null,null,null,null,null,null,null,null,null,null,"Oct"]
[null,null,null,null,null,null,null,null,null,null,"Nov"]
[null,null,null,null,null,null,null,null,null,null,"Dec"]
[null,null,null,null,null,null,null,null,null,null,"Annual",{"$f":"AVERAGE(L67:L78)","v":{"$error":"#DIV/0!"}},{"$f":"MAX(M67:M78)","v":0},{"$f":"AVERAGE(N67:N78)","v":{"$error":"#DIV/0!"}},{"$f":"MAX(O67:O78)","v":0}]